{"text_format":"1","workbook":"xlsx","n_sheets":3,"sheets":["праздники","производственный календарь "," ГРАФИК АДМ "],"not_rendered":{"charts":0,"images":0,"macros":1,"external_links":7,"defined_names":85,"comments":1,"pivot_tables":0},"unopened":[],"bounds":{"document_bytes":16777216,"sheet_cells":100000,"rows_first":2000,"rows_last":500,"rows_between":2000,"halvings":0,"cell_chars":16384,"cell_head_chars":4096},"cells_cut":0,"cells_raw":0,"read":"whole","date_system":"1900"}

{"sheet":"праздники","index":0,"n_rows":23,"n_cols":9,"rows_kept":23,"cut":false,"hidden":false,"merged":[[0,11,12,11]]}
[null,null,null,null,null,"Список\n предпраздничных дней *","Список\n праздничных дней\n(дополняемый)","Список дополнительных нерабочих дней","Рабочие выходные "]
[null,null,null,null,null,"2021-02-20","2021-01-01"]
[null,null,null,null,null,"2021-04-30","2021-01-02"]
[null,null,null,null,null,"2021-06-11","2021-01-03"]
[null,null,null,null,null,"2021-11-03","2021-01-04"]
[null,null,null,null,null,null,"2021-01-05"]
[null,null,null,null,null,null,"2021-01-06"]
[null,null,null,null,null,null,"2021-01-07"]
[null,null,null,null,null,null,"2021-01-08"]
[null,null,null,null,null,null,"2021-01-09"]
[null,null,null,null,null,null,"2021-01-10"]
[null,null,null,null,null,null,"2021-02-23"]
[null,null,null,null,null,null,"2021-03-08"]
[null,null,null,null,null,null,"2020-05-01"]
[null,null,null,null,null,null,"2021-02-22"]
[null,null,null,null,null,null,"2021-12-31"]
[null,null,null,null,null,null,"2021-05-03"]
[null,null,null,null,null,null,"2021-06-14"]
[null,null,null,null,null,null,"2020-05-09"]
[null,null,null,null,null,null,"2021-05-10"]
[null,null,null,null,null,null,"2021-06-12"]
[null,null,null,null,null,null,"2021-11-04"]
[null,null,null,null,null,null,"2021-11-05"]

{"sheet":"производственный календарь ","index":1,"n_rows":13,"n_cols":6,"rows_kept":13,"cut":false,"hidden":false,"merged":[[0,2,0,3]]}
["дата",null,"норма"]
["2021-01-01","январь",120,15,1,31]
["2021-02-01","февраль",151,19,2,28]
["2021-03-01","март",176,22,3,31]
["2021-04-01","апрель",175,22,4,30]
["2021-05-01","май",152,19,5,31]
["2021-06-01","июнь",167,21,6,30]
["2021-07-01","июль",176,22,7,31]
["2021-08-01","август",176,22,8,31]
["2021-09-01","сентябрь",176,22,9,30]
["2021-10-01","октябрь",168,21,10,31]
["2021-11-01","ноябрь",159,20,11,30]
["2021-12-01","декабрь",176,22,12,31]

{"sheet":" ГРАФИК АДМ ","index":2,"n_rows":74,"n_cols":250,"rows_kept":74,"cut":false,"hidden":false,"merged":[[4,241,4,242],[7,0,7,76],[11,190,11,232],[11,235,12,235],[12,190,12,198],[12,200,12,209],[12,211,12,219],[0,241,0,242],[1,0,1,2],[1,241,1,242],[2,0,2,2],[2,241,2,242],[3,0,3,2],[3,241,3,242],[18,88,19,93],[18,94,19,99],[18,100,19,105],[18,106,19,111],[18,112,19,117],[18,118,19,123],[18,52,19,57],[18,58,19,63],[18,64,19,69],[18,70,19,75],[18,76,19,81],[18,82,19,87],[14,0,14,227],[15,0,15,227],[16,0,16,227],[18,0,19,4],[18,5,19,22],[18,23,19,27],[18,28,19,33],[18,34,19,39],[18,40,19,45],[18,46,19,51],[18,196,19,201],[18,202,19,207],[18,208,19,213],[18,214,18,232],[18,233,18,234],[19,214,19,228],[18,160,19,165],[18,166,19,171],[18,172,19,177],[18,178,19,183],[18,184,19,189],[18,190,19,195],[18,124,19,129],[18,130,19,135],[18,136,19,141],[18,142,19,147],[18,148,19,153],[18,154,19,159],[20,148,20,153],[20,82,20,87],[20,88,20,93],[20,94,20,99],[20,100,20,105],[20,106,20,111],[20,112,20,117],[20,46,20,51],[20,52,20,57],[20,58,20,63],[20,64,20,69],[20,70,20,75],[20,76,20,81],[20,0,20,4],[20,5,20,22],[20,24,20,27],[20,28,20,33],[20,34,20,39],[20,40,20,45],[21,82,21,87],[21,88,21,93],[21,94,21,99],[21,100,21,105],[21,106,21,111],[21,40,21,45],[21,46,21,51],[21,52,21,57],[21,58,21,63],[21,64,21,69],[21,70,21,75],[20,190,20,195],[20,196,20,201],[20,202,20,207],[20,208,20,213],[20,214,20,220],[21,1,27,4],[21,5,27,21],[21,23,22,27],[21,28,21,33],[21,34,21,39],[20,154,20,159],[20,160,20,165],[20,166,20,171],[20,172,20,177],[20,178,20,183],[20,184,20,189],[20,118,20,123],[20,124,20,129],[20,130,20,135],[20,136,20,141],[20,142,20,147],[21,221,21,228],[22,28,22,33],[22,34,22,39],[22,40,22,45],[22,46,22,51],[22,52,22,57],[22,58,22,63],[22,64,22,69],[22,70,22,75],[21,184,21,189],[21,190,21,195],[21,196,21,201],[21,202,21,207],[21,208,21,213],[21,214,23,220],[22,184,22,189],[22,190,22,195],[22,196,22,201],[22,202,22,207],[21,148,21,153],[21,154,21,159],[21,160,21,165],[21,166,21,171],[21,172,21,177],[21,178,21,183],[21,112,21,117],[21,118,21,123],[21,124,21,129],[21,130,21,135],[21,136,21,141],[21,142,21,147],[21,76,21,81],[23,106,23,111],[22,208,22,213],[23,23,23,27],[23,28,23,33],[23,34,23,39],[23,40,23,45],[23,46,23,51],[23,52,23,57],[23,58,23,63],[23,64,23,69],[23,70,23,75],[22,148,22,153],[22,154,22,159],[22,160,22,165],[22,166,22,171],[22,172,22,177],[22,178,22,183],[22,112,22,117],[22,118,22,123],[22,124,22,129],[22,130,22,135],[22,136,22,141],[22,142,22,147],[22,76,22,81],[22,82,22,87],[22,88,22,93],[22,94,22,99],[22,100,22,105],[22,106,22,111],[24,23,24,27],[24,28,24,33],[24,34,24,39],[24,40,24,45],[24,46,24,51],[24,52,24,57],[23,184,23,189],[23,190,23,195],[23,196,23,201],[23,202,23,207],[23,208,23,213],[23,221,24,228],[24,202,24,207],[24,208,24,213],[24,214,24,220],[23,148,23,153],[23,154,23,159],[23,160,23,165],[23,166,23,171],[23,172,23,177],[23,178,23,183],[23,112,23,117],[23,118,23,123],[23,124,23,129],[23,130,23,135],[23,136,23,141],[23,142,23,147],[23,76,23,81],[23,82,23,87],[23,88,23,93],[23,94,23,99],[23,100,23,105],[25,28,25,33],[25,34,25,39],[25,40,25,45],[25,46,25,51],[25,52,25,57],[24,166,24,171],[24,172,24,177],[24,178,24,183],[24,184,24,189],[24,190,24,195],[24,196,24,201],[24,130,24,135],[24,136,24,141],[24,142,24,147],[24,148,24,153],[24,154,24,159],[24,160,24,165],[24,94,24,99],[24,100,24,105],[24,106,24,111],[24,112,24,117],[24,118,24,123],[24,124,24,129],[24,58,24,63],[24,64,24,69],[24,70,24,75],[24,76,24,81],[24,82,24,87],[24,88,24,93],[26,24,26,27],[26,28,26,33],[26,34,26,39],[26,40,26,45],[26,46,26,51],[26,52,26,57],[26,58,26,63],[25,166,25,171],[25,172,25,177],[25,178,25,183],[25,184,25,189],[25,190,25,195],[25,196,25,201],[25,130,25,135],[25,136,25,141],[25,142,25,147],[25,148,25,153],[25,154,25,159],[25,160,25,165],[25,94,25,99],[25,100,25,105],[25,106,25,111],[25,112,25,117],[25,118,25,123],[25,124,25,129],[25,58,25,63],[25,64,25,69],[25,70,25,75],[25,76,25,81],[25,82,25,87],[25,88,25,93],[25,24,25,27],[26,160,26,165],[26,166,26,171],[26,100,26,105],[26,106,26,111],[26,112,26,117],[26,118,26,123],[26,124,26,129],[26,130,26,135],[26,64,26,69],[26,70,26,75],[26,76,26,81],[26,82,26,87],[26,88,26,93],[26,94,26,99],[25,202,25,207],[25,208,25,213],[25,214,25,220],[27,106,27,111],[27,112,27,117],[27,118,27,123],[27,124,27,129],[27,130,27,135],[27,136,27,141],[27,70,27,75],[27,76,27,81],[27,82,27,87],[27,88,27,93],[27,94,27,99],[27,100,27,105],[26,208,26,213],[26,214,26,220],[27,24,27,27],[27,28,27,33],[27,34,27,39],[27,40,27,45],[27,46,27,51],[27,52,27,57],[27,58,27,63],[27,64,27,69],[26,172,26,177],[26,178,26,183],[26,184,26,189],[26,190,26,195],[26,196,26,201],[26,202,26,207],[26,136,26,141],[26,142,26,147],[26,148,26,153],[26,154,26,159],[28,112,28,117],[28,118,28,123],[28,124,28,129],[28,130,28,135],[28,64,28,69],[28,70,28,75],[28,76,28,81],[28,82,28,87],[28,88,28,93],[28,94,28,99],[27,214,27,220],[28,1,33,4],[28,5,33,21],[28,24,29,27],[28,28,28,33],[28,34,28,39],[28,40,28,45],[28,46,28,51],[28,52,28,57],[28,58,28,63],[27,178,27,183],[27,184,27,189],[27,190,27,195],[27,196,27,201],[27,202,27,207],[27,208,27,213],[27,142,27,147],[27,148,27,153],[27,154,27,159],[27,160,27,165],[27,166,27,171],[27,172,27,177],[29,124,29,129],[29,130,29,135],[29,64,29,69],[29,70,29,75],[29,76,29,81],[29,82,29,87],[29,88,29,93],[29,94,29,99],[28,208,28,213],[28,214,30,220],[28,221,28,228],[28,232,30,232],[29,28,29,33],[29,34,29,39],[29,40,29,45],[29,46,29,51],[29,52,29,57],[29,58,29,63],[28,172,28,177],[28,178,28,183],[28,184,28,189],[28,190,28,195],[28,196,28,201],[28,202,28,207],[28,136,28,141],[28,142,28,147],[28,148,28,153],[28,154,28,159],[28,160,28,165],[28,166,28,171],[28,100,28,105],[28,106,28,111],[30,76,30,81],[30,82,30,87],[30,88,30,93],[30,94,30,99],[30,100,30,105],[30,106,30,111],[29,208,29,213],[30,24,30,27],[30,28,30,33],[30,34,30,39],[30,40,30,45],[30,46,30,51],[30,52,30,57],[30,58,30,63],[30,64,30,69],[30,70,30,75],[29,172,29,177],[29,178,29,183],[29,184,29,189],[29,190,29,195],[29,196,29,201],[29,202,29,207],[29,136,29,141],[29,142,29,147],[29,148,29,153],[29,154,29,159],[29,160,29,165],[29,166,29,171],[29,100,29,105],[29,106,29,111],[29,112,29,117],[29,118,29,123],[30,184,30,189],[30,190,30,195],[30,196,30,201],[30,202,30,207],[30,208,30,213],[30,221,31,228],[31,202,31,207],[31,208,31,213],[30,148,30,153],[30,154,30,159],[30,160,30,165],[30,166,30,171],[30,172,30,177],[30,178,30,183],[30,112,30,117],[30,118,30,123],[30,124,30,129],[30,130,30,135],[30,136,30,141],[30,142,30,147],[31,172,31,177],[31,178,31,183],[31,184,31,189],[31,190,31,195],[31,196,31,201],[31,130,31,135],[31,136,31,141],[31,142,31,147],[31,148,31,153],[31,154,31,159],[31,160,31,165],[31,94,31,99],[31,100,31,105],[31,106,31,111],[31,112,31,117],[31,118,31,123],[31,124,31,129],[32,106,32,111],[32,112,32,117],[32,118,32,123],[32,124,32,129],[32,58,32,63],[32,64,32,69],[32,70,32,75],[32,76,32,81],[32,82,32,87],[32,88,32,93],[32,24,32,27],[32,28,32,33],[32,34,32,39],[32,40,32,45],[32,46,32,51],[32,52,32,57],[31,166,31,171],[31,58,31,63],[31,64,31,69],[31,70,31,75],[31,76,31,81],[31,82,31,87],[31,88,31,93],[31,24,31,27],[31,28,31,33],[31,34,31,39],[31,40,31,45],[31,46,31,51],[31,52,31,57],[33,118,33,123],[33,124,33,129],[33,58,33,63],[33,64,33,69],[33,70,33,75],[33,76,33,81],[33,82,33,87],[33,88,33,93],[32,202,32,207],[32,208,32,213],[32,214,33,220],[32,221,33,228],[33,24,33,27],[33,28,33,33],[33,34,33,39],[33,40,33,45],[33,46,33,51],[33,52,33,57],[32,166,32,171],[32,172,32,177],[32,178,32,183],[32,184,32,189],[32,190,32,195],[32,196,32,201],[32,130,32,135],[32,136,32,141],[32,142,32,147],[32,148,32,153],[32,154,32,159],[32,160,32,165],[32,94,32,99],[32,100,32,105],[34,58,34,63],[34,64,34,69],[34,70,34,75],[34,76,34,81],[34,82,34,87],[34,88,34,93],[33,202,33,207],[33,208,33,213],[34,1,39,4],[34,5,39,22],[34,23,35,27],[34,28,34,33],[34,34,34,39],[34,40,34,45],[34,46,34,51],[34,52,34,57],[33,166,33,171],[33,172,33,177],[33,178,33,183],[33,184,33,189],[33,190,33,195],[33,196,33,201],[33,130,33,135],[33,136,33,141],[33,142,33,147],[33,148,33,153],[33,154,33,159],[33,160,33,165],[33,94,33,99],[33,100,33,105],[33,106,33,111],[33,112,33,117],[35,70,35,75],[35,76,35,81],[35,82,35,87],[35,88,35,93],[34,202,34,207],[34,208,34,213],[34,214,36,220],[34,221,34,228],[34,232,36,232],[35,28,35,33],[35,34,35,39],[35,40,35,45],[35,46,35,51],[35,52,35,57],[34,166,34,171],[34,172,34,177],[34,178,34,183],[34,184,34,189],[34,190,34,195],[34,196,34,201],[34,130,34,135],[34,136,34,141],[34,142,34,147],[34,148,34,153],[34,154,34,159],[34,160,34,165],[34,94,34,99],[34,100,34,105],[34,106,34,111],[34,112,34,117],[34,118,34,123],[34,124,34,129],[36,94,36,99],[36,100,36,105],[35,202,35,207],[35,208,35,213],[36,23,36,27],[36,28,36,33],[36,34,36,39],[36,40,36,45],[36,46,36,51],[36,52,36,57],[36,58,36,63],[36,64,36,69],[35,166,35,171],[35,172,35,177],[35,178,35,183],[35,184,35,189],[35,190,35,195],[35,196,35,201],[35,130,35,135],[35,136,35,141],[35,142,35,147],[35,148,35,153],[35,154,35,159],[35,160,35,165],[35,94,35,99],[35,100,35,105],[35,106,35,111],[35,112,35,117],[35,118,35,123],[35,124,35,129],[35,58,35,63],[35,64,35,69],[36,221,37,228],[37,23,37,27],[37,28,37,33],[37,34,37,39],[37,40,37,45],[37,46,37,51],[37,52,37,57],[37,58,37,63],[37,64,37,69],[37,70,37,75],[36,178,36,183],[36,184,36,189],[36,190,36,195],[36,196,36,201],[36,202,36,207],[36,208,36,213],[36,142,36,147],[36,148,36,153],[36,154,36,159],[36,160,36,165],[36,166,36,171],[36,172,36,177],[36,106,36,111],[36,112,36,117],[36,118,36,123],[36,124,36,129],[36,130,36,135],[36,136,36,141],[36,70,36,75],[36,76,36,81],[36,82,36,87],[36,88,36,93],[38,24,38,27],[38,28,38,33],[38,34,38,39],[38,40,38,45],[38,46,38,51],[37,148,37,153],[37,154,37,159],[37,160,37,165],[37,166,37,171],[37,172,37,177],[37,178,37,183],[37,112,37,117],[37,118,37,123],[37,124,37,129],[37,130,37,135],[37,136,37,141],[37,142,37,147],[37,76,37,81],[37,82,37,87],[37,88,37,93],[37,94,37,99],[37,100,37,105],[37,106,37,111],[38,88,38,93],[38,94,38,99],[38,100,38,105],[38,106,38,111],[38,112,38,117],[38,118,38,123],[38,52,38,57],[38,58,38,63],[38,64,38,69],[38,70,38,75],[38,76,38,81],[38,82,38,87],[37,184,37,189],[37,190,37,195],[37,196,37,201],[37,202,37,207],[37,208,37,213],[39,100,39,105],[39,106,39,111],[39,112,39,117],[39,118,39,123],[39,52,39,57],[39,58,39,63],[39,64,39,69],[39,70,39,75],[39,76,39,81],[39,82,39,87],[38,196,38,201],[38,202,38,207],[38,208,38,213],[38,214,39,220],[38,221,38,228],[39,24,39,27],[39,28,39,33],[39,34,39,39],[39,40,39,45],[39,46,39,51],[38,160,38,165],[38,166,38,171],[38,172,38,177],[38,178,38,183],[38,184,38,189],[38,190,38,195],[38,124,38,129],[38,130,38,135],[38,136,38,141],[38,142,38,147],[38,148,38,153],[38,154,38,159],[40,112,40,117],[40,118,40,123],[40,52,40,57],[40,58,40,63],[40,64,40,69],[40,70,40,75],[40,76,40,81],[40,82,40,87],[39,196,39,201],[39,202,39,207],[39,208,39,213],[40,1,45,4],[40,5,45,21],[40,24,41,27],[40,28,40,33],[40,34,40,39],[40,40,40,45],[40,46,40,51],[39,160,39,165],[39,166,39,171],[39,172,39,177],[39,178,39,183],[39,184,39,189],[39,190,39,195],[39,124,39,129],[39,130,39,135],[39,136,39,141],[39,142,39,147],[39,148,39,153],[39,154,39,159],[39,88,39,93],[39,94,39,99],[41,28,41,33],[41,34,41,39],[41,40,41,45],[41,46,41,51],[41,52,41,57],[41,58,41,63],[40,196,40,201],[40,202,40,207],[40,208,40,213],[40,214,42,220],[40,221,41,228],[40,232,42,232],[41,208,41,213],[42,202,42,207],[42,208,42,213],[42,221,42,228],[40,160,40,165],[40,166,40,171],[40,172,40,177],[40,178,40,183],[40,184,40,189],[40,190,40,195],[40,124,40,129],[40,130,40,135],[40,136,40,141],[40,142,40,147],[40,148,40,153],[40,154,40,159],[40,88,40,93],[40,94,40,99],[40,100,40,105],[40,106,40,111],[42,82,42,87],[42,88,42,93],[42,24,42,27],[42,28,42,33],[42,34,42,39],[42,40,42,45],[42,46,42,51],[42,52,42,57],[41,172,41,177],[41,178,41,183],[41,184,41,189],[41,190,41,195],[41,196,41,201],[41,202,41,207],[41,136,41,141],[41,142,41,147],[41,148,41,153],[41,154,41,159],[41,160,41,165],[41,166,41,171],[41,100,41,105],[41,106,41,111],[41,112,41,117],[41,118,41,123],[41,124,41,129],[41,130,41,135],[41,64,41,69],[41,70,41,75],[41,76,41,81],[41,82,41,87],[41,88,41,93],[41,94,41,99],[43,70,43,75],[43,76,43,81],[43,82,43,87],[43,88,43,93],[43,24,43,27],[43,28,43,33],[43,34,43,39],[43,40,43,45],[43,46,43,51],[43,52,43,57],[42,166,42,171],[42,172,42,177],[42,178,42,183],[42,184,42,189],[42,190,42,195],[42,196,42,201],[42,130,42,135],[42,136,42,141],[42,142,42,147],[42,148,42,153],[42,154,42,159],[42,160,42,165],[42,94,42,99],[42,100,42,105],[42,106,42,111],[42,112,42,117],[42,118,42,123],[42,124,42,129],[42,58,42,63],[42,64,42,69],[42,70,42,75],[42,76,42,81],[44,94,44,99],[44,100,44,105],[43,202,43,207],[43,208,43,213],[44,24,44,27],[44,28,44,33],[44,34,44,39],[44,40,44,45],[44,46,44,51],[44,52,44,57],[44,58,44,63],[44,64,44,69],[43,166,43,171],[43,172,43,177],[43,178,43,183],[43,184,43,189],[43,190,43,195],[43,196,43,201],[43,130,43,135],[43,136,43,141],[43,142,43,147],[43,148,43,153],[43,154,43,159],[43,160,43,165],[43,94,43,99],[43,100,43,105],[43,106,43,111],[43,112,43,117],[43,118,43,123],[43,124,43,129],[43,58,43,63],[43,64,43,69],[44,214,45,220],[45,24,45,27],[45,28,45,33],[45,34,45,39],[45,40,45,45],[45,46,45,51],[45,52,45,57],[45,58,45,63],[45,64,45,69],[45,70,45,75],[44,178,44,183],[44,184,44,189],[44,190,44,195],[44,196,44,201],[44,202,44,207],[44,208,44,213],[44,142,44,147],[44,148,44,153],[44,154,44,159],[44,160,44,165],[44,166,44,171],[44,172,44,177],[44,106,44,111],[44,112,44,117],[44,118,44,123],[44,124,44,129],[44,130,44,135],[44,136,44,141],[44,70,44,75],[44,76,44,81],[44,82,44,87],[44,88,44,93],[46,1,51,4],[46,5,51,21],[46,24,47,27],[46,28,46,33],[46,34,46,39],[45,148,45,153],[45,154,45,159],[45,160,45,165],[45,166,45,171],[45,172,45,177],[45,178,45,183],[45,112,45,117],[45,118,45,123],[45,124,45,129],[45,130,45,135],[45,136,45,141],[45,142,45,147],[45,76,45,81],[45,82,45,87],[45,88,45,93],[45,94,45,99],[45,100,45,105],[45,106,45,111],[46,76,46,81],[46,82,46,87],[46,88,46,93],[46,94,46,99],[46,100,46,105],[46,106,46,111],[46,40,46,45],[46,46,46,51],[46,52,46,57],[46,58,46,63],[46,64,46,69],[46,70,46,75],[45,184,45,189],[45,190,45,195],[45,196,45,201],[45,202,45,207],[45,208,45,213],[46,232,48,232],[47,28,47,33],[47,34,47,39],[47,40,47,45],[47,46,47,51],[47,52,47,57],[47,58,47,63],[47,64,47,69],[47,70,47,75],[47,76,47,81],[46,184,46,189],[46,190,46,195],[46,196,46,201],[46,202,46,207],[46,208,46,213],[46,214,48,220],[47,190,47,195],[47,196,47,201],[47,202,47,207],[47,208,47,213],[46,148,46,153],[46,154,46,159],[46,160,46,165],[46,166,46,171],[46,172,46,177],[46,178,46,183],[46,112,46,117],[46,118,46,123],[46,124,46,129],[46,130,46,135],[46,136,46,141],[46,142,46,147],[48,82,48,87],[48,88,48,93],[48,24,48,27],[48,28,48,33],[48,34,48,39],[48,40,48,45],[48,46,48,51],[48,52,48,57],[47,154,47,159],[47,160,47,165],[47,166,47,171],[47,172,47,177],[47,178,47,183],[47,184,47,189],[47,118,47,123],[47,124,47,129],[47,130,47,135],[47,136,47,141],[47,142,47,147],[47,148,47,153],[47,82,47,87],[47,88,47,93],[47,94,47,99],[47,100,47,105],[47,106,47,111],[47,112,47,117],[48,202,48,207],[48,208,48,213],[49,24,49,27],[49,28,49,33],[49,34,49,39],[49,40,49,45],[49,46,49,51],[49,52,49,57]],"merged_total":1420,"flags":["merged_cut"]}
[null,null,null,null,null,null,null,null,null,null,null,null,null,null,null,null,null,null,null,null,null,null,null,null,null,null,null,null,null,null,null,null,null,null,null,null,null,null,null,null,null,null,null,null,null,null,null,null,null,null,null,null,null,null,null,null,null,null,null,null,null,null,null,null,null,null,null,null,null,null,null,null,null,null,null,null,null,null,null,null,null,null,null,null,null,null,null,null,null,null,null,null,null,null,null,null,null,null,null,null,null,null,null,null,null,null,null,null,null,null,null,null,null,null,null,null,null,null,null,null,null,null,null,null,null,null,null,null,null,null,null,null,null,null,null,null,null,null,null,null,null,null,null,null,null,null,null,null,null,null,null,null,null,null,null,null,null,null,null,null,null,null,null,null,null,null,null,null,null,null,null,null,null,null,null,null,null,null,null,null,null,null,null,null,null,null,null,null,null,null,null,null,null,null,null,null,null,null,null,null,null,null,null,null,null,null,null,null,null,null,null,null,null,null,null,null,null,null,null,null,null,null,null,null,null,null,null,null,null,null,null,null,null,null,null,null,null,null,null,null,null,"СЕГОДНЯ"]
[null,null,null,null,null,null,null,null,null,null,null,null,null,null,null,null,null,null,null,null,null,null,null,null,null,null,null,null,null,null,null,null,null,null,null,null,null,null,null,null,null,null,null,null,null,null,null,null,null,null,null,null,null,null,null,null,null,null,null,null,null,null,null,null,null,null,null,null,null,null,null,null,null,null,null,null,null,null,null,null,null,null,null,null,null,null,null,null,null,null,null,null,null,null,null,null,null,null,null,null,null,null,null,null,null,null,null,null,null,null,null,null,null,null,null,null,null,null,null,null,null,null,null,null,null,null,null,null,null,null,null,null,null,null,null,null,null,null,null,null,null,null,null,null,null,null,null,null,null,null,null,null,null,null,null,null,null,null,null,null,null,null,null,null,null,null,null,null,null,null,null,null,null,null,null,null,null,null,null,null,null,null,null,null,null,null,null,null,null,null,null,null,null,null,null,null,null,null,null,null,null,null,null,null,null,null,null,null,null,null,null,null,null,null,null,null,null,null,null,null,null,null,null,null,null,null,null,null,null,null,null,null,null,null,null,null,null,null,null,null,null,{"$f":"TODAY()","v":"2020-11-14"}]
[null,null,null,null,null,null,null,null,null,null,null,null,null,null,null,null,null,null,null,null,null,null,null,null,null,null,null,null,null,null,null,null,null,null,null,null,null,null,null,null,null,null,null,null,null,null,null,null,null,null,null,null,null,null,null,null,null,null,null,null,null,null,null,null,null,null,null,null,null,null,null,null,null,null,null,null,null,null,null,null,null,null,null,null,null,null,null,null,null,null,null,null,null,null,null,null,null,null,null,null,null,null,null,null,null,null,null,null,null,null,null,null,null,null,null,null,null,null,null,null,null,null,null,null,null,null,null,null,null,null,null,null,null,null,null,null,null,null,null,null,null,null,null,null,null,null,null,null,null,null,null,null,null,null,null,null,null,null,null,null,null,null,null,null,null,null,null,null,null,null,null,null,null,null,null,null,null,null,null,null,null,null,null,null,null,null,null,null,null,null,null,null,null,null,null,null,null,null,null,null,null,null,null,null,null,null,null,null,null,null,null,null,null,null,null,null,null,null,null,null,null,null,null,null,null,null,null,null,null,null,null,null,null,null,null,null,null,null,null,null,null,{"$f":"TEXT(HZ2,\"дддд\")","v":"суббота"}]
[null,null,null,null,null,null,null,null,null,null,null,null,null,null,null,null,null,null,null,null,null,null,null,null,null,null,null,null,null,null,null,null,null,null,null,null,null,null,null,null,null,null,null,null,null,null,null,null,null,null,null,null,null,null,null,null,null,null,null,null,null,null,null,null,null,null,null,null,null,null,null,null,null,null,null,null,null,null,null,null,null,null,null,null,null,null,null,null,null,null,null,null,null,null,null,null,null,null,null,null,null,null,null,null,null,null,null,null,null,null,null,null,null,null,null,null,null,null,null,null,null,null,null,null,null,null,null,null,null,null,null,null,null,null,null,null,null,null,null,null,null,null,null,null,null,null,null,null,null,null,null,null,null,null,null,null,null,null,null,null,null,null,null,null,null,null,null,null,null,null,null,null,null,null,null,null,null,null,null,null,null,null,null,null,null,null,null,null,null,null,null,null,null,null,null,null,null,null,null,null,null,null,null,null,null,null,null,null,null,null,null,null,null,null,null,null,null,null,null,null,null,null,null,null,null,null,null,null,null,null,null,null,null,null,null,null,null,null,null,null,null,{"$f":"WEEKNUM(IH2,2)&\"-ая неделя\"","v":"46-ая неделя"}]
[null,null,null,null,null,null,null,null,{"$f":"IF(OR(#REF!<D3,AND(#REF!<D2,#REF!=D3)),$CN$19,IF(OR(#REF!>D3,AND(#REF!>D2,#REF!=D3)),0,DAY(A2)))","v":{"$error":"#REF!"}},null,null,null,null,null,null,null,null,null,null,null,null,null,null,null,null,null,null,null,null,null,null,null,null,null,null,null,null,null,null,null,null,null,null,null,null,null,null,null,null,null,null,null,null,null,null,null,null,null,null,null,null,null,null,null,null,null,null,null,null,null,null,null,null,null,null,null,null,null,null,null,null,null,null,null,null,null,null,null,null,null,null,null,null,null,null,null,null,null,null,null,null,null,null,null,null,null,null,null,null,null,null,null,null,null,null,null,null,null,null,null,null,null,null,null,null,null,null,null,null,null,null,null,null,null,null,null,null,null,null,null,null,null,null,null,null,null,null,null,null,null,null,null,null,null,null,null,null,null,null,null,null,null,null,null,null,null,null,null,null,null,null,null,null,null,null,null,null,null,null,null,null,null,null,null,null,null,null,null,null,null,null,null,null,null,null,null,null,null,null,null,null,null,null,null,null,null,null,null,null,null,null,null,null,null,null,null,null,null,null,null,null,null,null,null,null,null,null,null,null,null,null,null,null,null,null,null,null,null,null,null,null,{"$f":"IF(OR(#REF!<IC3,AND(#REF!<IC2,#REF!=IC3)),$CN$19,IF(OR(#REF!>IC3,AND(#REF!>IC2,#REF!=IC3)),0,DAY(HZ2)))","v":{"$error":"#REF!"}}]
[null,null,null,null,null,null,null,null,null,null,null,null,null,null,null,null,null,null,null,null,null,null,null,null,null,null,null,null,null,null,null,null,null,null,null,null,null,null,null,null,null,null,null,null,null,null,null,null,null,null,null,null,null,null,null,null,null,null,null,null,null,null,null,null,null,null,null,null,null,null,null,null,null,null,null,null,null,null,null,null,null,null,null,null,null,null,null,null,null,null,null,null,null,null,null,null,null,null,null,null,null,null,null,null,null,null,null,null,null,null,null,null,null,null,null,null,null,null,null,null,null,null,null,null,null,null,null,null,null,null,null,null,null,null,null,null,null,null,null,null,null,null,null,null,null,null,null,null,null,null,null,null,null,null,null,null,null,null,null,null,null,null,null,null,null,null,null,null,null,null,null,null,null,null,null,null,null,null,null,null,null,null,null,null,null,null,null,null,null,null,null,null,null,null,null,null,null,null,null,null,null,null,null,null,null,null,null,null,null,null,null,null,null,null,null,null,null,null,null,null,null,null,null,null,null,null,null,null,null,null,null,null,null,null,null,null,null,null,null,null,"время"]
[null,null,null,null,null,null,null,null,null,null,null,null,null,null,null,null,null,null,null,null,null,null,null,null,null,null,null,null,null,null,null,null,null,null,null,null,null,null,null,null,null,null,null,null,null,null,null,null,null,null,null,null,null,null,null,null,null,null,null,null,null,null,null,null,null,null,null,null,null,null,null,null,null,null,null,null,null,null,null,null,null,null,null,null,null,null,null,null,null,null,null,null,null,null,null,null,null,null,null,null,null,null,null,null,null,null,null,null,null,null,null,null,null,null,null,null,null,null,null,null,null,null,null,null,null,null,null,null,null,null,null,null,null,null,null,null,null,null,null,null,null,null,null,null,null,null,null,null,null,null,null,null,null,null,null,null,null,null,null,null,null,null,null,null,null,null,null,null,null,null,null,null,null,null,null,null,null,null,null,null,null,null,null,null,null,null,null,null,null,null,null,null,null,null,null,null,null,null,null,null,null,null,null,null,null,null,null,null,1,null,null,null,null,null,null,null,null,null,null,null,null,null,null,null,null,null,null,null,null,null,null,null,null,null,null,"количество дней месяца",null,null,28]
[null,null,null,null,null,null,null,null,null,null,null,null,null,null,null,null,null,null,null,null,null,null,null,null,null,null,null,null,null,null,null,null,null,null,null,null,null,null,null,null,null,null,null,null,null,null,null,null,null,null,null,null,null,null,null,null,null,null,null,null,null,null,null,null,null,null,null,null,null,null,null,null,null,null,null,null,null,null,null,null,null,null,null,null,null,null,null,null,null,null,null,null,null,null,null,null,null,null,null,null,null,null,null,null,null,null,null,null,null,null,null,null,null,null,null,null,null,null,null,null,null,null,null,null,null,null,null,null,null,null,null,null,null,null,null,null,null,null,null,null,null,null,null,null,null,null,null,null,null,null,null,null,null,null,null,null,null,null,null,null,null,null,null,null,null,null,null,null,null,null,null,null,null,null,null,null,null,null,null,null,null,null,null,null,null,null,null,null,null,null,null,null,null,null,null,null,null,null,null,null,null,null,null,null,null,null,null,null,2,null,null,null,null,null,null,null,null,null,null,null,null,null,null,null,null,null,null,null,null,null,null,null,null,null,null,"месяц",null,null,2,null,"Столбец1"]
[null,null,null,null,null,null,null,null,null,null,null,null,null,null,null,null,null,null,null,null,null,null,null,null,null,null,null,null,null,null,null,null,null,null,null,null,null,null,null,null,null,null,null,null,null,null,null,null,null,null,null,null,null,null,null,null,null,null,null,null,null,null,null,null,null,null,null,null,null,null,null,null,null,null,null,null,null,null,null,null,null,null,null,null,null,null,null,null,null,null,null,null,null,null,null,null,null,null,null,null,null,null,null,null,null,null,null,null,null,null,null,null,null,null,null,null,null,null,null,null,null,null,null,null,null,null,null,null,null,null,null,null,null,null,null,null,null,null,null,null,null,null,null,null,null,null,null,null,null,null,null,null,null,null,null,null,null,null,null,null,null,null,null,null,null,null,null,null,null,null,null,null,null,null,null,null,null,null,null,null,null,null,null,null,null,null,null,null,null,null,null,null,null,null,null,null,null,null,null,null,null,null,null,null,null,null,null,null,null,null,null,null,null,null,null,null,null,null,null,null,null,null,null,null,null,null,null,null,null,null,null,null,null,null,null,"год",null,null,2021,null,0.3125]
[null,null,null,null,null,null,null,null,null,null,null,null,null,null,null,null,null,null,null,null,null,null,null,null,null,null,null,null,null,null,null,null,null,null,null,null,null,null,null,null,null,null,null,null,null,null,null,null,null,null,null,null,null,null,null,null,null,null,null,null,null,null,null,null,null,null,null,null,null,null,null,null,null,null,null,null,null,null,null,null,null,null,null,null,null,null,null,null,null,null,null,null,null,null,null,null,null,null,null,null,null,null,null,null,null,null,null,null,null,null,null,null,null,null,null,null,null,null,null,null,null,null,null,null,null,null,null,null,null,null,null,null,null,null,null,null,null,null,null,null,null,null,null,null,null,null,null,null,null,null,null,null,null,null,null,null,null,null,null,null,null,null,null,null,null,null,null,null,null,null,null,null,null,null,null,null,null,null,null,null,null,null,null,null,null,null,null,null,null,null,"УТВЕРЖДАЮ",null,null,null,null,null,null,null,null,null,null,null,null,null,null,null,null,null,null,null,null,null,null,null,null,null,null,null,null,null,null,null,null,null,null,null,null,null,null,null,null,null,null,null,null,null,null,null,null,null,0.33333333333333331]
[null,null,null,null,null,null,null,null,null,null,null,null,null,null,null,null,null,null,null,null,null,null,null,null,null,null,null,null,null,null,null,null,null,null,null,null,null,null,null,null,null,null,null,null,null,null,null,null,null,null,null,null,null,null,null,null,null,null,null,null,null,null,null,null,null,null,null,null,null,null,null,null,null,null,null,null,null,null,null,null,null,null,null,null,null,null,null,null,null,null,null,null,null,null,null,null,null,null,null,null,null,null,null,null,null,null,null,null,null,null,null,null,null,null,null,null,null,null,null,null,null,null,null,null,null,null,null,null,null,null,null,null,null,null,null,null,null,null,null,null,null,null,null,null,null,null,null,null,null,null,null,null,null,null,null,null,null,null,null,null,null,null,null,null,null,null,null,null,null,null,null,null,null,null,null,null,null,null,null,null,null,null,null,null,null,null,null,null,null,null," ",null,null,null,null,null,null,null,null,null,null,null,null,null,null,null,null,null,null,null,null,null,null,null,null,null,null,null,null,null,null,null,null,null,null,null,null,null,null,null,null,null,null,null,null,null,null,null,null,null,0.375]
[null,null,null,null,null,null,null,null,null,null,null,null,null,null,null,null,null,null,null,null,null,null,null,null,null,null,null,null,null,null,null,null,null,null,null,null,null,null,null,null,null,null,null,null,null,null,null,null,null,null,null,null,null,null,null,null,null,null,null,null,null,null,null,null,null,null,null,null,null,null,null,null,null,null,null,null,null,null,null,null,null,null,null,null,null,null,null,null,null,null,null,null,null,null,null,null,null,null,null,null,null,null,null,null,null,null,null,null,null,null,null,null,null,null,null,null,null,null,null,null,null,null,null,null,null,null,null,null,null,null,null,null,null,null,null,null,null,null,null,null,null,null,null,null,null,null,null,null,null,null,null,null,null,null,null,null,null,null,null,null,null,null,null,null,null,null,null,null,null,null,null,null,null,null,null,null,null,null,null,null,null,null,null,null,null,null,null,null,null,null,null,null,null,null,null,null,null,null,null,null,null,null,null,null,null,null,null,null,null,null,null,null,null,null,null,null,null,null,null,null,null,null,null,null,null,null,null,null,null,null,null,null,null,null,null,null,null,null,null,null,0.41666666666666669]
[null,null,null,null,null,null,null,null,null,null,null,null,null,null,null,null,null,null,null,null,null,null,null,null,null,null,null,null,null,null,null,null,null,null,null,null,null,null,null,null,null,null,null,null,null,null,null,null,null,null,null,null,null,null,null,null,null,null,null,null,null,null,null,null,null,null,null,null,null,null,null,null,null,null,null,null,null,null,null,null,null,null,null,null,null,null,null,null,null,null,null,null,null,null,null,null,null,null,null,null,null,null,null,null,null,null,null,null,null,null,null,null,null,null,null,null,null,null,null,null,null,null,null,null,null,null,null,null,null,null,null,null,null,null,null,null,null,null,null,null,null,null,null,null,null,null,null,null,null,null,null,null,null,null,null,null,null,null,null,null,null,null,null,null,null,null,null,null,null,null,null,null,null,null,null,null,null,null,null,null,null,null,null,null,null,null,null,null,null,null,"\"01\"",null,null,null,null,null,null,null,null,null," ",null,null,null,null,null,null,null,null,null,null,2020,null,null,null,null,null,null,null,null,null,null,null,null,null,null,null,null,null,null,null,null,null,null,null,null,null,null,null,null,0.45833333333333331]
[null,null,null,null,null,null,null,null,null,null,null,null,null,null,null,null,null,null,null,null,null,null,null,null,null,null,null,null,null,null,null,null,null,null,null,null,null,null,null,null,null,null,null,null,null,null,null,null,null,null,null,null,null,null,null,null,null,null,null,null,null,null,null,null,null,null,null,null,null,null,null,null,null,null,null,null,null,null,null,null,null,null,null,null,null,null,null,null,null,null,null,null,null,null,null,null,null,null,null,null,null,null,null,null,null,null,null,null,null,null,null,null,null,null,null,null,null,null,null,null,null,null,null,null,null,null,null,null,null,null,null,null,null,null,null,null,null,null,null,null,null,null,null,null,null,null,null,null,null,null,null,null,null,null,null,null,null,null,null,null,null,null,null,null,null,null,null,null,null,null,null,null,null,null,null,null,null,null,null,null,null,null,null,null,null,null,null,null,null,null,null,null,null,null,null,null,null,null,null,null,null,null,null,null,null,null,null,null,null,null,null,null,null,null,null,null,null,null,null,null,null,null,null,null,null,null,null,null,null,null,null,null,null,null,null,null,null,null,null,null,0.5,null,null,"Столбец1",null,null,null,null,null,1]
["ГРАФИК",null,null,null,null,null,null,null,null,null,null,null,null,null,null,null,null,null,null,null,null,null,null,null,null,null,null,null,null,null,null,null,null,null,null,null,null,null,null,null,null,null,null,null,null,null,null,null,null,null,null,null,null,null,null,null,null,null,null,null,null,null,null,null,null,null,null,null,null,null,null,null,null,null,null,null,null,null,null,null,null,null,null,null,null,null,null,null,null,null,null,null,null,null,null,null,null,null,null,null,null,null,null,null,null,null,null,null,null,null,null,null,null,null,null,null,null,null,null,null,null,null,null,null,null,null,null,null,null,null,null,null,null,null,null,null,null,null,null,null,null,null,null,null,null,null,null,null,null,null,null,null,null,null,null,null,null,null,null,null,null,null,null,null,null,null,null,null,null,null,null,null,null,null,null,null,null,null,null,null,null,null,null,null,null,null,null,null,null,null,null,null,null,null,null,null,null,null,null,null,null,null,null,null,null,null,null,null,null,null,null,null,null,null,null,null,null,null,null,null,null,null,null,null,null,null,null,null,null,null,null,null,null,null,null,null,null,null,null,null,0.52083333333333337,null,null,"Иванов И.И..,  ",null,null,null,null,null,0.5]
["УЧЕТА ИСПОЛЬЗОВАНИЯ РАБОЧЕГО ВРЕМЕНИ ОБСЛУЖИВАЮЩЕГО ПЕРСОНАЛА",null,null,null,null,null,null,null,null,null,null,null,null,null,null,null,null,null,null,null,null,null,null,null,null,null,null,null,null,null,null,null,null,null,null,null,null,null,null,null,null,null,null,null,null,null,null,null,null,null,null,null,null,null,null,null,null,null,null,null,null,null,null,null,null,null,null,null,null,null,null,null,null,null,null,null,null,null,null,null,null,null,null,null,null,null,null,null,null,null,null,null,null,null,null,null,null,null,null,null,null,null,null,null,null,null,null,null,null,null,null,null,null,null,null,null,null,null,null,null,null,null,null,null,null,null,null,null,null,null,null,null,null,null,null,null,null,null,null,null,null,null,null,null,null,null,null,null,null,null,null,null,null,null,null,null,null,null,null,null,null,null,null,null,null,null,null,null,null,null,null,null,null,null,null,null,null,null,null,null,null,null,null,null,null,null,null,null,null,null,null,null,null,null,null,null,null,null,null,null,null,null,null,null,null,null,null,null,null,null,null,null,null,null,null,null,null,null,null,null,null,null,null,null,null,null,null,null,null,null,null,null,null,null,null,null,null,null,null,null,0.54166666666666663,null,null,"Петров П.П..,  ",null,null,null,null,null,0.25]
["2021-02-01",null,null,null,null,null,null,null,null,null,null,null,null,null,null,null,null,null,null,null,null,null,null,null,null,null,null,null,null,null,null,null,null,null,null,null,null,null,null,null,null,null,null,null,null,null,null,null,null,null,null,null,null,null,null,null,null,null,null,null,null,null,null,null,null,null,null,null,null,null,null,null,null,null,null,null,null,null,null,null,null,null,null,null,null,null,null,null,null,null,null,null,null,null,null,null,null,null,null,null,null,null,null,null,null,null,null,null,null,null,null,null,null,null,null,null,null,null,null,null,null,null,null,null,null,null,null,null,null,null,null,null,null,null,null,null,null,null,null,null,null,null,null,null,null,null,null,null,null,null,null,null,null,null,null,null,null,null,null,null,null,null,null,null,null,null,null,null,null,null,null,null,null,null,null,null,null,null,null,null,null,null,null,null,null,null,null,null,null,null,null,null,null,null,null,null,null,null,null,null,null,null,null,null,null,null,null,null,null,null,null,null,null,null,null,null,null,null,null,null,null,null,null,null,null,null,null,null,null,null,null,null,"февраль",null,null,null,null,null,null,null,0.58333333333333337,null,null,"Сидорова С.С."]
[null,null,null,null,null,null,null,null,null,null,null,null,null,null,null,null,null,null,null,null,null,null,null,null,null,null,null,null,null,null,null,null,null,null,null,null,null,null,null,null,null,null,null,null,null,null,null,null,null,null,null,null,null,null,null,null,null,null,null,null,null,null,null,null,null,null,null,null,null,null,null,null,null,null,null,null,null,null,null,null,null,null,null,null,null,null,null,null,null,null,null,null,null,null,null,null,null,null,null,null,null,null,null,null,null,null,null,null,null,null,null,null,null,null,null,null,null,null,null,null,null,null,null,null,null,null,null,null,null,null,null,null,null,null,null,null,null,null,null,null,null,null,null,null,null,null,null,null,null,null,null,null,null,null,null,null,null,null,null,null,null,null,null,null,null,null,null,null,null,null,null,null,null,null,null,null,null,null,null,null,null,null,null,null,null,null,null,null,null,null,null,null,null,null,null,null,null,null,null,null,null,null,null,null,null,null,null,null,null,null,null,null,null,null,null,null,null,null,null,null,null,null,null,null,null,null,null,null,null,null,null,null,null,null,null,null,null,null,null,null,0.625,null,null,"Петрова Т.В."]
["№",null,null,null,null,"Фамилия Инициалы",null,null,null,null,null,null,null,null,null,null,null,null,null,null,null,null,null,"Ставка",null,null,null,null,1,null,null,null,null,null,2,null,null,null,null,null,3,null,null,null,null,null,4,null,null,null,null,null,5,null,null,null,null,null,6,null,null,null,null,null,7,null,null,null,null,null,8,null,null,null,null,null,9,null,null,null,null,null,10,null,null,null,null,null,11,null,null,null,null,null,12,null,null,null,null,null,13,null,null,null,null,null,14,null,null,null,null,null,15,null,null,null,null,null,16,null,null,null,null,null,17,null,null,null,null,null,18,null,null,null,null,null,19,null,null,null,null,null,20,null,null,null,null,null,21,null,null,null,null,null,22,null,null,null,null,null,23,null,null,null,null,null,24,null,null,null,null,null,25,null,null,null,null,null,26,null,null,null,null,null,27,null,null,null,null,null,28,null,null,null,null,null,{"$f":"IF(29<=$IE$7,29,\"-\")","v":"-"},null,null,null,null,null,{"$f":"IF(30<=$IE$7,30,\"-\")","v":"-"},null,null,null,null,null,{"$f":"IF(31<=$IE$7,31,\"-\")","v":"-"},null,null,null,null,null,"ВСЕГО",null,null,null,null,null,null,null,null,null,null,null,null,null,null,null,null,null,null,"по календарю",null,null,null,null,null,null,0.66666666666666663,null,null,"Гордиенко Т.И."]
[null,null,null,null,null,null,null,null,null,null,null,null,null,null,null,null,null,null,null,null,null,null,null,null,null,null,null,null,null,null,null,null,null,null,null,null,null,null,null,null,null,null,null,null,null,null,null,null,null,null,null,null,null,null,null,null,null,null,null,null,null,null,null,null,null,null,null,null,null,null,null,null,null,null,null,null,null,null,null,null,null,null,null,null,null,null,null,null,null,null,null,null,null,null,null,null,null,null,null,null,null,null,null,null,null,null,null,null,null,null,null,null,null,null,null,null,null,null,null,null,null,null,null,null,null,null,null,null,null,null,null,null,null,null,null,null,null,null,null,null,null,null,null,null,null,null,null,null,null,null,null,null,null,null,null,null,null,null,null,null,null,null,null,null,null,null,null,null,null,null,null,null,null,null,null,null,null,null,null,null,null,null,null,null,null,null,null,null,null,null,null,null,null,null,null,null,null,null,null,null,null,null,null,null,null,null,null,null,null,null,null,null,null,null,"дней",null,null,null,null,null,null,null,null,null,null,null,null,null,null,null,null,null,"часов","дней","часов",null,null,null,null,null,0.70833333333333337]
[null,null,null,null,null,null,null,null,null,null,null,null,null,null,null,null,null,null,null,null,null,null,null,null,null,null,null,null,{"$f":"IFERROR($A$17+AC19-1,\"-\")","v":"2021-02-01"},null,null,null,null,null,{"$f":"IFERROR($A$17+AI19-1,\"-\")","v":"2021-02-02"},null,null,null,null,null,{"$f":"IFERROR($A$17+AO19-1,\"-\")","v":"2021-02-03"},null,null,null,null,null,{"$f":"IFERROR($A$17+AU19-1,\"-\")","v":"2021-02-04"},null,null,null,null,null,{"$f":"IFERROR($A$17+BA19-1,\"-\")","v":"2021-02-05"},null,null,null,null,null,{"$f":"IFERROR($A$17+BG19-1,\"-\")","v":"2021-02-06"},null,null,null,null,null,{"$f":"IFERROR($A$17+BM19-1,\"-\")","v":"2021-02-07"},null,null,null,null,null,{"$f":"IFERROR($A$17+BS19-1,\"-\")","v":"2021-02-08"},null,null,null,null,null,{"$f":"IFERROR($A$17+BY19-1,\"-\")","v":"2021-02-09"},null,null,null,null,null,{"$f":"IFERROR($A$17+CE19-1,\"-\")","v":"2021-02-10"},null,null,null,null,null,{"$f":"IFERROR($A$17+CK19-1,\"-\")","v":"2021-02-11"},null,null,null,null,null,{"$f":"IFERROR($A$17+CQ19-1,\"-\")","v":"2021-02-12"},null,null,null,null,null,{"$f":"IFERROR($A$17+CW19-1,\"-\")","v":"2021-02-13"},null,null,null,null,null,{"$f":"IFERROR($A$17+DC19-1,\"-\")","v":"2021-02-14"},null,null,null,null,null,{"$f":"IFERROR($A$17+DI19-1,\"-\")","v":"2021-02-15"},null,null,null,null,null,{"$f":"IFERROR($A$17+DO19-1,\"-\")","v":"2021-02-16"},null,null,null,null,null,{"$f":"IFERROR($A$17+DU19-1,\"-\")","v":"2021-02-17"},null,null,null,null,null,{"$f":"IFERROR($A$17+EA19-1,\"-\")","v":"2021-02-18"},null,null,null,null,null,{"$f":"IFERROR($A$17+EG19-1,\"-\")","v":"2021-02-19"},null,null,null,null,null,{"$f":"IFERROR($A$17+EM19-1,\"-\")","v":"2021-02-20"},null,null,null,null,null,{"$f":"IFERROR($A$17+ES19-1,\"-\")","v":"2021-02-21"},null,null,null,null,null,{"$f":"IFERROR($A$17+EY19-1,\"-\")","v":"2021-02-22"},null,null,null,null,null,{"$f":"IFERROR($A$17+FE19-1,\"-\")","v":"2021-02-23"},null,null,null,null,null,{"$f":"IFERROR($A$17+FK19-1,\"-\")","v":"2021-02-24"},null,null,null,null,null,{"$f":"IFERROR($A$17+FQ19-1,\"-\")","v":"2021-02-25"},null,null,null,null,null,{"$f":"IFERROR($A$17+FW19-1,\"-\")","v":"2021-02-26"},null,null,null,null,null,{"$f":"IFERROR($A$17+GC19-1,\"-\")","v":"2021-02-27"},null,null,null,null,null,{"$f":"IFERROR($A$17+GI19-1,\"-\")","v":"2021-02-28"},null,null,null,null,null,{"$f":"IFERROR($A$17+GO19-1,\"-\")","v":"-"},null,null,null,null,null,{"$f":"IFERROR($A$17+GU19-1,\"-\")","v":"-"},null,null,null,null,null,{"$f":"IFERROR($A$17+HA19-1,\"-\")","v":"-"},null,null,null,null,null,null,null,null,null,null,null,null,null,null,null,null,null,null,null,null,null,null,null,null,null,null,null,null,null,null,null,0.75]
[{"$f":"IF(ISBLANK(F29),\"\",COUNTA($F$29:F29))","v":1},1,null,null,null,"Иванов И.И..,  ",null,null,null,null,null,null,null,null,null,null,null,null,null,null,null,null,null,1,null,null,null,null,0.33333333333333331,null,null,null,null,null,0.33333333333333331,null,null,null,null,null,0.33333333333333331,null,null,null,null,null,0.33333333333333331,null,null,null,null,null,0.33333333333333331,null,null,null,null,null,"В",null,null,null,null,null,"В",null,null,null,null,null,0.33333333333333331,null,null,null,null,null,0.33333333333333331,null,null,null,null,null,0.33333333333333331,null,null,null,null,null,0.33333333333333331,null,null,null,null,null,0.33333333333333331,null,null,null,null,null,"В",null,null,null,null,null,"В",null,null,null,null,null,0.33333333333333331,null,null,null,null,null,0.33333333333333331,null,null,null,null,null,0.33333333333333331,null,null,null,null,null,0.33333333333333331,null,null,null,null,null,0.33333333333333331,null,null,null,null,null,0.33333333333333331,null,null,null,null,null,"В",null,null,null,null,null,null,null,null,null,null,null,null,null,null,null,null,null,0.33333333333333331,null,null,null,null,null,0.33333333333333331,null,null,null,null,null,0.33333333333333331,null,null,null,null,null,"В",null,null,null,null,null,"В",null,null,null,null,null,null,null,null,null,null,null,null,null,null,null,null,null,null,null,null,null,null,null,{"$f":"COUNT(AC22:HF22)","v":19},null,null,null,null,null,null,null,null,null,null,null,null,null,null,null,null,null,{"$f":"SUM(IFERROR(AC23:HF23-AC22:HF22-AC24:HF24,0))","v":6.3333333333333321},{"$f":"VLOOKUP($HY$17,'производственный календарь '!B2:F13,3,0)","v":19},{"$f":"VLOOKUP($HY$17,'производственный календарь '!B2:F13,2,0)","v":151},null,null,null,null,null,0.69791666666666663]
[null,null,null,null,null,null,null,null,null,null,null,null,null,null,null,null,null,null,null,null,null,null,null,null,null,null,null,null,0.70833333333333337,null,null,null,null,null,0.70833333333333337,null,null,null,null,null,0.70833333333333337,null,null,null,null,null,0.70833333333333337,null,null,null,null,null,0.70833333333333337,null,null,null,null,null,"В",null,null,null,null,null,"В",null,null,null,null,null,0.70833333333333337,null,null,null,null,null,0.70833333333333337,null,null,null,null,null,0.70833333333333337,null,null,null,null,null,0.70833333333333337,null,null,null,null,null,0.70833333333333337,null,null,null,null,null,"В",null,null,null,null,null,"В",null,null,null,null,null,0.70833333333333337,null,null,null,null,null,0.70833333333333337,null,null,null,null,null,0.70833333333333337,null,null,null,null,null,0.70833333333333337,null,null,null,null,null,0.70833333333333337,null,null,null,null,null,0.70833333333333337,null,null,null,null,null,"В",null,null,null,null,null,null,null,null,null,null,null,null,null,null,null,null,null,0.70833333333333337,null,null,null,null,null,0.70833333333333337,null,null,null,null,null,0.70833333333333337,null,null,null,null,null,"В",null,null,null,null,null,"В",null,null,null,null,null,null,null,null,null,null,null,null,null,null,null,null,null,null,null,null,null,null,null,null,null,null,null,null,null,null,null,null,null,null,null,null,null,null,null,null,null,6.3333333333333321,null,null,null,null,null,null,null,0.16666666666666666]
[null,null,null,null,null,null,null,null,null,null,null,null,null,null,null,null,null,null,null,null,null,null,null,"обед",null,null,null,null,"01:00:00",null,null,null,null,null,"01:00:00",null,null,null,null,null,"01:00:00",null,null,null,null,null,"01:00:00",null,null,null,null,null,"01:00:00",null,null,null,null,null,"В",null,null,null,null,null,"В",null,null,null,null,null,"01:00:00",null,null,null,null,null,"01:00:00",null,null,null,null,null,"01:00:00",null,null,null,null,null,"01:00:00",null,null,null,null,null,"01:00:00",null,null,null,null,null,"В",null,null,null,null,null,"В",null,null,null,null,null,"01:00:00",null,null,null,null,null,"01:00:00",null,null,null,null,null,"01:00:00",null,null,null,null,null,"01:00:00",null,null,null,null,null,"01:00:00",null,null,null,null,null,"01:00:00",null,null,null,null,null,"В",null,null,null,null,null,null,null,null,null,null,null,null,null,null,null,null,null,"01:00:00",null,null,null,null,null,"01:00:00",null,null,null,null,null,"01:00:00",null,null,null,null,null,"В",null,null,null,null,null,"В",null,null,null,null,null,null,null,null,null,null,null,null,null,null,null,null,null,null,null,null,null,null,null,null,null,null,null,null,null,null,null,null,null,null,null,null,null,null,null,null,null,6.3333333333333321,null,null,null,null,null,null,null,0.1875]
[null,null,null,null,null,null,null,null,null,null,null,null,null,null,null,null,null,null,null,null,null,null,null,"р.д.",null,null,null,null,{"$f":"IFERROR(AC23-AC22-AC24,0)","v":"08:00:00"},null,null,null,null,null,{"$f":"IFERROR(AI23-AI22-AI24,0)","v":"08:00:00"},null,null,null,null,null,{"$f":"IFERROR(AO23-AO22-AO24,0)","v":"08:00:00"},null,null,null,null,null,{"$f":"IFERROR(AU23-AU22-AU24,0)","v":"08:00:00"},null,null,null,null,null,{"$f":"IFERROR(BA23-BA22-BA24,0)","v":"08:00:00"},null,null,null,null,null,{"$f":"IFERROR(BG23-BG22-BG24,0)","v":"00:00:00"},null,null,null,null,null,{"$f":"IFERROR(BM23-BM22-BM24,0)","v":"00:00:00"},null,null,null,null,null,{"$f":"IFERROR(BS23-BS22-BS24,0)","v":"08:00:00"},null,null,null,null,null,{"$f":"IFERROR(BY23-BY22-BY24,0)","v":"08:00:00"},null,null,null,null,null,{"$f":"IFERROR(CE23-CE22-CE24,0)","v":"08:00:00"},null,null,null,null,null,{"$f":"IFERROR(CK23-CK22-CK24,0)","v":"08:00:00"},null,null,null,null,null,{"$f":"IFERROR(CQ23-CQ22-CQ24,0)","v":"08:00:00"},null,null,null,null,null,{"$f":"IFERROR(CW23-CW22-CW24,0)","v":"00:00:00"},null,null,null,null,null,{"$f":"IFERROR(DC23-DC22-DC24,0)","v":"00:00:00"},null,null,null,null,null,{"$f":"IFERROR(DI23-DI22-DI24,0)","v":"08:00:00"},null,null,null,null,null,{"$f":"IFERROR(DO23-DO22-DO24,0)","v":"08:00:00"},null,null,null,null,null,{"$f":"IFERROR(DU23-DU22-DU24,0)","v":"08:00:00"},null,null,null,null,null,{"$f":"IFERROR(EA23-EA22-EA24,0)","v":"08:00:00"},null,null,null,null,null,{"$f":"IFERROR(EG23-EG22-EG24,0)","v":"08:00:00"},null,null,null,null,null,{"$f":"IFERROR(EM23-EM22-EM24,0)","v":"08:00:00"},null,null,null,null,null,{"$f":"IFERROR(ES23-ES22-ES24,0)","v":"00:00:00"},null,null,null,null,null,{"$f":"IFERROR(EY23-EY22-EY24,0)","v":"00:00:00"},null,null,null,null,null,{"$f":"IFERROR(FE23-FE22-FE24,0)","v":"00:00:00"},null,null,null,null,null,{"$f":"IFERROR(FK23-FK22-FK24,0)","v":"08:00:00"},null,null,null,null,null,{"$f":"IFERROR(FQ23-FQ22-FQ24,0)","v":"08:00:00"},null,null,null,null,null,{"$f":"IFERROR(FW23-FW22-FW24,0)","v":"08:00:00"},null,null,null,null,null,{"$f":"IFERROR(GC23-GC22-GC24,0)","v":"00:00:00"},null,null,null,null,null,{"$f":"IFERROR(GI23-GI22-GI24,0)","v":"00:00:00"},null,null,null,null,null,{"$f":"IFERROR(GO23-GO22-GO24,0)","v":"00:00:00"},null,null,null,null,null,{"$f":"IFERROR(GU23-GU22-GU24,0)","v":"00:00:00"},null,null,null,null,null,{"$f":"IFERROR(HA23-HA22-HA24,0)","v":"00:00:00"},null,null,null,null,null,null,null,null,null,null,null,null,null,null,null,null,null,null,null,null,null,null,null,{"$f":"SUM(AC25:HF25)","v":6.3333333333333321},null,null,null,null,null,null,null,0.5625]
[null,null,null,null,null,null,null,null,null,null,null,null,null,null,null,null,null,null,null,null,null,null,null,null,null,null,null,null,null,null,null,null,null,null,null,null,null,null,null,null,null,null,null,null,null,null,null,null,null,null,null,null,null,null,null,null,null,null,null,null,null,null,null,null,null,null,null,null,null,null,null,null,null,null,null,null,null,null,null,null,null,null,null,null,null,null,null,null,null,null,null,null,null,null,null,null,null,null,null,null,null,null,null,null,null,null,null,null,null,null,null,null,null,null,null,null,null,null,null,null,null,null,null,null,null,null,null,null,null,null,null,null,null,null,null,null,null,null,null,null,null,null,null,null,null,null,null,null,null,null,null,null,null,null,null,null,null,null,null,null,null,null,null,null,null,null,null,null,null,null,null,null,null,null,null,null,null,null,null,null,null,null,null,null,null,null,null,null,null,null,null,null,null,null,null,null,null,null,null,null,null,null,null,null,null,null,null,null,null,null,null,null,null,null,null,null,null,null,null,null,null,null,null,null,null,null,null,null,null,null,null,null,null,null,null,null,null,null,null,null,0.52083333333333337]
[null,null,null,null,null,null,null,null,null,null,null,null,null,null,null,null,null,null,null,null,null,null,null,"пр","ПР",null,null,null,null,null,null,null,null,null,null,null,null,null,null,null,null,null,null,null,null,null,null,null,null,null,null,null,null,null,null,null,null,null,null,null,null,null,null,null,null,null,null,null,null,null,null,null,null,null,null,null,null,null,null,null,null,null,null,null,null,null,null,null,null,null,null,null,null,null,null,null,null,null,null,null,null,null,null,null,null,null,null,null,null,null,null,null,null,null,null,null,null,null,null,null,null,null,null,null,null,null,null,null,null,null,null,null,null,null,null,null,null,null,null,null,null,null,null,null,null,null,null,null,null,null,null,null,null,null,null,null,null,null,null,null,null,null,null,null,null,null,null,null,null,null,null,null,null,null,null,null,null,null,null,null,null,null,null,null,null,null,null,null,null,null,null,null,null,null,null,null,null,null,null,null,null,null,null,null,null,null,null,null,null,null,null,null,null,null,null,null,null,null,null,null,null,null,null,null,null,null,null,null,null,null,null,null,null,null,null,null,null," ",null,null,0.97916666666666663]
[null,null,null,null,null,null,null,null,null,null,null,null,null,null,null,null,null,null,null,null,null,null,null,null,"ОТ",null,null,null,null,null,null,null,null,null,null,null,null,null,null,null,null,null,null,null,null,null,null,null,null,null,null,null,null,null,null,null,null,null,null,null,null,null,null,null,null,null,null,null,null,null,null,null,null,null,null,null,null,null,null,null,null,null,null,null,null,null,null,null,null,null,null,null,null,null,null,null,null,null,null,null,null,null,null,null,null,null,null,null,null,null,null,null,null,null,null,null,null,null,null,null,null,null,null,null,null,null,null,null,null,null,null,null,null,null,null,null,null,null,null,null,null,null,null,null,null,null,null,null,null,null,null,null,null,null,null,null,null,null,null,null,null,null,null,null,null,null,null,null,null,null,null,null,null,null,null,null,null,null,null,null,null,null,null,null,null,null,null,null,null,null,null,null,null,null,null,null,null,null,null,null,null,null,null,null,null,null,null,null,null,null,null,null,null,null,{"$f":"COUNTIF(AC28:HF28,\"ОТ\")","v":0},null,null,null,null,null,null,null,null,null,null,null,null,null,null,null,null,null,{"$f":"SUM(AC28:HF28)","v":0},{"$f":"VLOOKUP($HY$17,'[1]производственный календарь '!$B$2:$D$13,3,0)","v":19},{"$f":"VLOOKUP($HY$17,'[1]производственный календарь '!$B$2:$D$13,2,0)","v":152},null,null,null,null,null,0.95833333333333337]
[null,2,null,null,null,"Петров П.П..,  ",null,null,null,null,null,null,null,null,null,null,null,null,null,null,null,null,null,null,1,null,null,null,0.33333333333333331,null,null,null,null,null,0.33333333333333331,null,null,null,null,null,0.33333333333333331,null,null,null,null,null,0.33333333333333331,null,null,null,null,null,0.33333333333333331,null,null,null,null,null,"В",null,null,null,null,null,"В",null,null,null,null,null,0.33333333333333331,null,null,null,null,null,0.33333333333333331,null,null,null,null,null,0.33333333333333331,null,null,null,null,null,0.33333333333333331,null,null,null,null,null,0.33333333333333331,null,null,null,null,null,"В",null,null,null,null,null,"В",null,null,null,null,null,0.33333333333333331,null,null,null,null,null,0.33333333333333331,null,null,null,null,null,0.33333333333333331,null,null,null,null,null,0.33333333333333331,null,null,null,null,null,0.33333333333333331,null,null,null,null,null,"В",null,null,null,null,null,"В",null,null,null,null,null,null,null,null,null,null,null,null,null,null,null,null,null,0.33333333333333331,null,null,null,null,null,0.33333333333333331,null,null,null,null,null,0.33333333333333331,null,null,null,null,null,"В",null,null,null,null,null,"В",null,null,null,null,null,null,null,null,null,null,null,null,null,null,null,null,null,null,null,null,null,null,null,{"$f":"COUNT(AC29:HF29)","v":18},null,null,null,null,null,null,null,null,null,null,null,null,null,null,null,null,null,{"$f":"SUM(IFERROR(AC30:HF30-AC29:HF29-AC31:HF31,0))","v":0},null,null,null,null,null,null,null,1]
[null,null,null,null,null,null,null,null,null,null,null,null,null,null,null,null,null,null,null,null,null,null,null,null,null,null,null,null,0.70833333333333337,null,null,null,null,null,0.70833333333333337,null,null,null,null,null,0.70833333333333337,null,null,null,null,null,0.70833333333333337,null,null,null,null,null,0.70833333333333337,null,null,null,null,null,"В",null,null,null,null,null,"В",null,null,null,null,null,0.70833333333333337,null,null,null,null,null,0.70833333333333337,null,null,null,null,null,0.70833333333333337,null,null,null,null,null,0.70833333333333337,null,null,null,null,null,0.70833333333333337,null,null,null,null,null,"В",null,null,null,null,null,"В",null,null,null,null,null,0.70833333333333337,null,null,null,null,null,0.70833333333333337,null,null,null,null,null,0.70833333333333337,null,null,null,null,null,0.70833333333333337,null,null,null,null,null,0.70833333333333337,null,null,null,null,null,"В",null,null,null,null,null,"В",null,null,null,null,null,null,null,null,null,null,null,null,null,null,null,null,null,0.70833333333333337,null,null,null,null,null,0.70833333333333337,null,null,null,null,null,0.70833333333333337,null,null,null,null,null,"В",null,null,null,null,null,"В",null,null,null,null,null,null,null,null,null,null,null,null,null,null,null,null,null,null,null,null,null,null,null,null,null,null,null,null,null,null,null,null,null,null,null,null,null,null,null,null,null,null,null,null,null,null,null,null,null,"В"]
[null,null,null,null,null,null,null,null,null,null,null,null,null,null,null,null,null,null,null,null,null,null,null,null,"обед",null,null,null,"01:00:00",null,null,null,null,null,"01:00:00",null,null,null,null,null,"01:00:00",null,null,null,null,null,"01:00:00",null,null,null,null,null,"01:00:00",null,null,null,null,null,"В",null,null,null,null,null,"В",null,null,null,null,null,"01:00:00",null,null,null,null,null,"01:00:00",null,null,null,null,null,"01:00:00",null,null,null,null,null,"01:00:00",null,null,null,null,null,"01:00:00",null,null,null,null,null,"В",null,null,null,null,null,"В",null,null,null,null,null,"01:00:00",null,null,null,null,null,"01:00:00",null,null,null,null,null,"01:00:00",null,null,null,null,null,"01:00:00",null,null,null,null,null,"01:00:00",null,null,null,null,null,"В",null,null,null,null,null,"В",null,null,null,null,null,null,null,null,null,null,null,null,null,null,null,null,null,"01:00:00",null,null,null,null,null,"01:00:00",null,null,null,null,null,"01:00:00",null,null,null,null,null,"В",null,null,null,null,null,"В",null,null,null,null,null,null,null,null,null,null,null,null,null,null,null,null,null,null,null,null,null,null,null,null,null,null,null,null,null,null,null,null,null,null,null,null,null,null,null,null,null,null,null,null,null,null,null,null,null,"ОТ"]
[null,null,null,null,null,null,null,null,null,null,null,null,null,null,null,null,null,null,null,null,null,null,null,null,"р.д.",null,null,null,{"$f":"IFERROR(AC30-AC29-AC31,0)","v":"08:00:00"},null,null,null,null,null,{"$f":"IFERROR(AI30-AI29-AI31,0)","v":"08:00:00"},null,null,null,null,null,{"$f":"IFERROR(AO30-AO29-AO31,0)","v":"08:00:00"},null,null,null,null,null,{"$f":"IFERROR(AU30-AU29-AU31,0)","v":"08:00:00"},null,null,null,null,null,{"$f":"IFERROR(BA30-BA29-BA31,0)","v":"08:00:00"},null,null,null,null,null,{"$f":"IFERROR(BG30-BG29-BG31,0)","v":"00:00:00"},null,null,null,null,null,{"$f":"IFERROR(BM30-BM29-BM31,0)","v":"00:00:00"},null,null,null,null,null,{"$f":"IFERROR(BS30-BS29-BS31,0)","v":"08:00:00"},null,null,null,null,null,{"$f":"IFERROR(BY30-BY29-BY31,0)","v":"08:00:00"},null,null,null,null,null,{"$f":"IFERROR(CE30-CE29-CE31,0)","v":"08:00:00"},null,null,null,null,null,{"$f":"IFERROR(CK30-CK29-CK31,0)","v":"08:00:00"},null,null,null,null,null,{"$f":"IFERROR(CQ30-CQ29-CQ31,0)","v":"08:00:00"},null,null,null,null,null,{"$f":"IFERROR(CW30-CW29-CW31,0)","v":"00:00:00"},null,null,null,null,null,{"$f":"IFERROR(DC30-DC29-DC31,0)","v":"00:00:00"},null,null,null,null,null,{"$f":"IFERROR(DI30-DI29-DI31,0)","v":"08:00:00"},null,null,null,null,null,{"$f":"IFERROR(DO30-DO29-DO31,0)","v":"08:00:00"},null,null,null,null,null,{"$f":"IFERROR(DU30-DU29-DU31,0)","v":"08:00:00"},null,null,null,null,null,{"$f":"IFERROR(EA30-EA29-EA31,0)","v":"08:00:00"},null,null,null,null,null,{"$f":"IFERROR(EG30-EG29-EG31,0)","v":"08:00:00"},null,null,null,null,null,{"$f":"IFERROR(EM30-EM29-EM31,0)","v":"00:00:00"},null,null,null,null,null,{"$f":"IFERROR(ES30-ES29-ES31,0)","v":"00:00:00"},null,null,null,null,null,{"$f":"IFERROR(EY30-EY29-EY31,0)","v":"00:00:00"},null,null,null,null,null,{"$f":"IFERROR(FE30-FE29-FE31,0)","v":"00:00:00"},null,null,null,null,null,{"$f":"IFERROR(FK30-FK29-FK31,0)","v":"08:00:00"},null,null,null,null,null,{"$f":"IFERROR(FQ30-FQ29-FQ31,0)","v":"08:00:00"},null,null,null,null,null,{"$f":"IFERROR(FW30-FW29-FW31,0)","v":"08:00:00"},null,null,null,null,null,{"$f":"IFERROR(GC30-GC29-GC31,0)","v":"00:00:00"},null,null,null,null,null,{"$f":"IFERROR(GI30-GI29-GI31,0)","v":"00:00:00"},null,null,null,null,null,null,null,null,null,null,null,null,null,null,null,null,null,null,null,null,null,null,null,null,null,null,null,null,null,null,null,null,null,null,null,null,null,null,null,null,null,{"$f":"SUM(AC32:HE32)","v":5.9999999999999991},null,null,null,null,null,null,null,"Р"]
[null,null,null,null,null,null,null,null,null,null,null,null,null,null,null,null,null,null,null,null,null,null,null,null,"пр."]
[null,null,null,null,null,null,null,null,null,null,null,null,null,null,null,null,null,null,null,null,null,null,null,null,"ОТ",null,null,null,null,null,null,null,null,null,null,null,null,null,null,null,null,null,null,null,null,null,null,null,null,null,null,null,null,null,null,null,null,null,null,null,null,null,null,null,null,null,null,null,null,null,null,null,null,null,null,null,null,null,null,null,null,null,null,null,null,null,null,null,null,null,null,null,null,null,null,null,null,null,null,null,null,null,null,null,null,null,null,null,null,null,null,null,null,null,null,null,null,null,null,null,null,null,null,null,null,null,null,null,null,null,null,null,null,null,null,null,null,null,null,null,null,null,null,null,null,null,null,null,null,null,null,null,null,null,null,null,null,null,null,null,null,null,null,null,null,null,null,null,null,null,null,null,null,null,null,null,null,null,null,null,null,null,null,null,null,null,null,null,null,null,null,null,null,null,null,null,null,null,null,null,null,null,null,null,null,null,null,null,null,null,null,null,null,null,null,null,null,null,null,null,null,null,null,null,null,null,null,null,null,null,null,null,null,{"$f":"VLOOKUP($HY$17,'[1]производственный календарь '!$B$2:$D$13,3,0)","v":19},{"$f":"VLOOKUP($HY$17,'[1]производственный календарь '!$B$2:$D$13,2,0)","v":152}]
[null,3,null,null,null,"Сидорова С.С.",null,null,null,null,null,null,null,null,null,null,null,null,null,null,null,null,null,1,null,null,null,null,0.625,null,null,null,null,null,"В",null,null,null,null,null,"В",null,null,null,null,null,0.625,null,null,null,null,null,"В",null,null,null,null,null,"В",null,null,null,null,null,"В",null,null,null,null,null,0.625,null,null,null,null,null,"В",null,null,null,null,null,"В",null,null,null,null,null,0.625,null,null,null,null,null,"В",null,null,null,null,null,"В",null,null,null,null,null,"В",null,null,null,null,null,0.625,null,null,null,null,null,"В",null,null,null,null,null,"В",null,null,null,null,null,0.625,null,null,null,null,null,"В",null,null,null,null,null,"В",null,null,null,null,null,"В",null,null,null,null,null,0.625,null,null,null,null,null,"В",null,null,null,null,null,"В",null,null,null,null,null,0.625,null,null,null,null,null,"В",null,null,null,null,null,"В",null,null,null,null,null,"В",null,null,null,null,null,0.625,null,null,null,null,null,"В",null,null,null,null,null,0.625,null,null,null,null,null,{"$f":"COUNT(AC35:HF35)","v":10},null,null,null,null,null,null,null,null,null,null,null,null,null,null,null,null,null,{"$f":"SUM(IFERROR(AC36:HF36-AC35:HF35-AC37:HF37,0))","v":0.82291666666666696},null,{"$f":"IA34/4","v":38}]
[null,null,null,null,null,null,null,null,null,null,null,null,null,null,null,null,null,null,null,null,null,null,null,null,null,null,null,null,0.70833333333333337,null,null,null,null,null,"В",null,null,null,null,null,"В",null,null,null,null,null,0.70833333333333337,null,null,null,null,null,"В",null,null,null,null,null,"В",null,null,null,null,null,"В",null,null,null,null,null,0.70833333333333337,null,null,null,null,null,"В",null,null,null,null,null,"В",null,null,null,null,null,0.70833333333333337,null,null,null,null,null,"В",null,null,null,null,null,"В",null,null,null,null,null,"В",null,null,null,null,null,0.70833333333333337,null,null,null,null,null,"В",null,null,null,null,null,"В",null,null,null,null,null,0.70833333333333337,null,null,null,null,null,"В",null,null,null,null,null,"В",null,null,null,null,null,"В",null,null,null,null,null,0.70833333333333337,null,null,null,null,null,"В",null,null,null,null,null,"В",null,null,null,null,null,0.70833333333333337,null,null,null,null,null,"В",null,null,null,null,null,"В",null,null,null,null,null,"В",null,null,null,null,null,0.70833333333333337,null,null,null,null,null,"В",null,null,null,null,null,0.69791666666666663]
[null,null,null,null,null,null,null,null,null,null,null,null,null,null,null,null,null,null,null,null,null,null,null,"обед",null,null,null,null,null,null,null,null,null,null,"В",null,null,null,null,null,"В",null,null,null,null,null,null,null,null,null,null,null,"В",null,null,null,null,null,"В",null,null,null,null,null,"В",null,null,null,null,null,null,null,null,null,null,null,"В",null,null,null,null,null,"В",null,null,null,null,null,null,null,null,null,null,null,"В",null,null,null,null,null,"В",null,null,null,null,null,"В",null,null,null,null,null,null,null,null,null,null,null,"В",null,null,null,null,null,"В",null,null,null,null,null,null,null,null,null,null,null,"В",null,null,null,null,null,"В",null,null,null,null,null,"В",null,null,null,null,null,null,null,null,null,null,null,"В",null,null,null,null,null,"В",null,null,null,null,null,null,null,null,null,null,null,"В",null,null,null,null,null,"В",null,null,null,null,null,"В",null,null,null,null,null,null,null,null,null,null,null,"В"]
[null,null,null,null,null,null,null,null,null,null,null,null,null,null,null,null,null,null,null,null,null,null,null,"р.д.",null,null,null,null,{"$f":"IFERROR(AC36-AC35-AC37,0)","v":"02:00:00"},null,null,null,null,null,{"$f":"IFERROR(AI36-AI35-AI37,0)","v":"00:00:00"},null,null,null,null,null,{"$f":"IFERROR(AO36-AO35-AO37,0)","v":"00:00:00"},null,null,null,null,null,{"$f":"IFERROR(AU36-AU35-AU37,0)","v":"02:00:00"},null,null,null,null,null,{"$f":"IFERROR(BA36-BA35-BA37,0)","v":"00:00:00"},null,null,null,null,null,{"$f":"IFERROR(BG36-BG35-BG37,0)","v":"00:00:00"},null,null,null,null,null,{"$f":"IFERROR(BM36-BM35-BM37,0)","v":"00:00:00"},null,null,null,null,null,{"$f":"IFERROR(BS36-BS35-BS37,0)","v":"02:00:00"},null,null,null,null,null,{"$f":"IFERROR(BY36-BY35-BY37,0)","v":"00:00:00"},null,null,null,null,null,{"$f":"IFERROR(CE36-CE35-CE37,0)","v":"00:00:00"},null,null,null,null,null,{"$f":"IFERROR(CK36-CK35-CK37,0)","v":"02:00:00"},null,null,null,null,null,{"$f":"IFERROR(CQ36-CQ35-CQ37,0)","v":"00:00:00"},null,null,null,null,null,{"$f":"IFERROR(CW36-CW35-CW37,0)","v":"00:00:00"},null,null,null,null,null,{"$f":"IFERROR(DC36-DC35-DC37,0)","v":"00:00:00"},null,null,null,null,null,{"$f":"IFERROR(DI36-DI35-DI37,0)","v":"02:00:00"},null,null,null,null,null,{"$f":"IFERROR(DO36-DO35-DO37,0)","v":"00:00:00"},null,null,null,null,null,{"$f":"IFERROR(DU36-DU35-DU37,0)","v":"00:00:00"},null,null,null,null,null,{"$f":"IFERROR(EA36-EA35-EA37,0)","v":"02:00:00"},null,null,null,null,null,{"$f":"IFERROR(EG36-EG35-EG37,0)","v":"00:00:00"},null,null,null,null,null,{"$f":"IFERROR(EM36-EM35-EM37,0)","v":"00:00:00"},null,null,null,null,null,{"$f":"IFERROR(ES36-ES35-ES37,0)","v":"00:00:00"},null,null,null,null,null,{"$f":"IFERROR(EY36-EY35-EY37,0)","v":"02:00:00"},null,null,null,null,null,{"$f":"IFERROR(FE36-FE35-FE37,0)","v":"00:00:00"},null,null,null,null,null,{"$f":"IFERROR(FK36-FK35-FK37,0)","v":"00:00:00"},null,null,null,null,null,{"$f":"IFERROR(FQ36-FQ35-FQ37,0)","v":"02:00:00"},null,null,null,null,null,{"$f":"IFERROR(FW36-FW35-FW37,0)","v":"00:00:00"},null,null,null,null,null,{"$f":"IFERROR(GC36-GC35-GC37,0)","v":"00:00:00"},null,null,null,null,null,{"$f":"IFERROR(GI36-GI35-GI37,0)","v":"00:00:00"},null,null,null,null,null,{"$f":"IFERROR(GO36-GO35-GO37,0)","v":"02:00:00"},null,null,null,null,null,{"$f":"IFERROR(GU36-GU35-GU37,0)","v":"00:00:00"},null,null,null,null,null,{"$f":"IFERROR(HA36-HA35-HA37,0)","v":"01:45:00"},null,null,null,null,null,null,null,null,null,null,null,null,null,null,null,null,null,null,null,null,null,null,null,{"$f":"SUM(AC38:HE38)","v":0.82291666666666696}]
[null,null,null,null,null,null,null,null,null,null,null,null,null,null,null,null,null,null,null,null,null,null,null,"пр.","пр."]
[null,null,null,null,null,null,null,null,null,null,null,null,null,null,null,null,null,null,null,null,null,null,null,null,"ОТ",null,null,null,null,null,null,null,null,null,null,null,null,null,null,null,null,null,null,null,null,null,null,null,null,null,null,null,null,null,null,null,null,null,null,null,null,null,null,null,null,null,null,null,null,null,null,null,null,null,null,null,null,null,null,null,null,null,null,null,null,null,null,null,null,null,null,null,null,null,null,null,null,null,null,null,null,null,null,null,null,null,null,null,null,null,null,null,null,null,null,null,null,null,null,null,null,null,null,null,null,null,null,null,null,null,null,null,null,null,null,null,null,null,null,null,null,null,null,null,null,null,null,null,null,null,null,null,null,null,null,null,null,null,null,null,null,null,null,null,null,null,null,null,null,null,null,null,null,null,null,null,null,null,null,null,null,null,null,null,null,null,null,null,null,null,null,null,null,null,null,null,null,null,null,null,null,null,null,null,null,null,null,null,null,null,null,null,null,null,null,null,null,null,null,null,null,null,null,null,null,null,null,null,null,null,null,null,null,{"$f":"VLOOKUP($HY$17,'[1]производственный календарь '!$B$2:$D$13,3,0)","v":19},{"$f":"VLOOKUP($HY$17,'[1]производственный календарь '!$B$2:$D$13,2,0)","v":152}]
[null,4,null,null,null,"Николаева С.С., главный бухгалтер",null,null,null,null,null,null,null,null,null,null,null,null,null,null,null,null,null,null,1,null,null,null,"В",null,null,null,null,null,"В",null,null,null,null,null,"В",null,null,null,null,null,"В",null,null,null,null,null,"В",null,null,null,null,null,"В",null,null,null,null,null,"В",null,null,null,null,null,"В",null,null,null,null,null,"В",null,null,null,null,null,"В",null,null,null,null,null,"В",null,null,null,null,null,"В",null,null,null,null,null,"В",null,null,null,null,null,"В",null,null,null,null,null,"В",null,null,null,null,null,"В",null,null,null,null,null,"В",null,null,null,null,null,"В",null,null,null,null,null,"В",null,null,null,null,null,"В",null,null,null,null,null,"В",null,null,null,null,null,"В",null,null,null,null,null,"В",null,null,null,null,null,"В",null,null,null,null,null,"В",null,null,null,null,null,"В",null,null,null,null,null,"В",null,null,null,null,null,"В",null,null,null,null,null,"В",null,null,null,null,null,"В",null,null,null,null,null,null,null,null,null,null,null,{"$f":"COUNT(AC41:HF41)","v":0},null,null,null,null,null,null,null,null,null,null,null,null,null,null,null,null,null,{"$f":"SUM(IFERROR(AC42:HF42-AC41:HF41-AC43:HF43,0))","v":0},null,{"$f":"IA40/2","v":76}]
[null,null,null,null,null,null,null,null,null,null,null,null,null,null,null,null,null,null,null,null,null,null,null,null,null,null,null,null,"В",null,null,null,null,null,"В",null,null,null,null,null,"В",null,null,null,null,null,"В",null,null,null,null,null,"В",null,null,null,null,null,"В",null,null,null,null,null,"В",null,null,null,null,null,"В",null,null,null,null,null,"В",null,null,null,null,null,"В",null,null,null,null,null,"В",null,null,null,null,null,"В",null,null,null,null,null,"В",null,null,null,null,null,"В",null,null,null,null,null,"В",null,null,null,null,null,"В",null,null,null,null,null,"В",null,null,null,null,null,"В",null,null,null,null,null,"В",null,null,null,null,null,"В",null,null,null,null,null,"В",null,null,null,null,null,"В",null,null,null,null,null,"В",null,null,null,null,null,"В",null,null,null,null,null,"В",null,null,null,null,null,"В",null,null,null,null,null,"В",null,null,null,null,null,"В",null,null,null,null,null,"В",null,null,null,null,null,"В"]
[null,null,null,null,null,null,null,null,null,null,null,null,null,null,null,null,null,null,null,null,null,null,null,null,"обед",null,null,null,"В",null,null,null,null,null,"В",null,null,null,null,null,"В",null,null,null,null,null,"В",null,null,null,null,null,"В",null,null,null,null,null,"В",null,null,null,null,null,"В",null,null,null,null,null,"В",null,null,null,null,null,"В",null,null,null,null,null,"В",null,null,null,null,null,"В",null,null,null,null,null,"В",null,null,null,null,null,"В",null,null,null,null,null,"В",null,null,null,null,null,"В",null,null,null,null,null,"В",null,null,null,null,null,"В",null,null,null,null,null,"В",null,null,null,null,null,"В",null,null,null,null,null,"В",null,null,null,null,null,"В",null,null,null,null,null,"В",null,null,null,null,null,"В",null,null,null,null,null,"В",null,null,null,null,null,"В",null,null,null,null,null,"В",null,null,null,null,null,"В",null,null,null,null,null,"В",null,null,null,null,null,"В",null,null,null,null,null,"В"]
[null,null,null,null,null,null,null,null,null,null,null,null,null,null,null,null,null,null,null,null,null,null,null,null,"р.д.",null,null,null,{"$f":"IFERROR(AC42-AC41-AC43,0)","v":"00:00:00"},null,null,null,null,null,{"$f":"IFERROR(AI42-AI41-AI43,0)","v":"00:00:00"},null,null,null,null,null,{"$f":"IFERROR(AO42-AO41-AO43,0)","v":"00:00:00"},null,null,null,null,null,{"$f":"IFERROR(AU42-AU41-AU43,0)","v":"00:00:00"},null,null,null,null,null,{"$f":"IFERROR(BA42-BA41-BA43,0)","v":"00:00:00"},null,null,null,null,null,{"$f":"IFERROR(BG42-BG41-BG43,0)","v":"00:00:00"},null,null,null,null,null,{"$f":"IFERROR(BM42-BM41-BM43,0)","v":"00:00:00"},null,null,null,null,null,{"$f":"IFERROR(BS42-BS41-BS43,0)","v":"00:00:00"},null,null,null,null,null,{"$f":"IFERROR(BY42-BY41-BY43,0)","v":"00:00:00"},null,null,null,null,null,{"$f":"IFERROR(CE42-CE41-CE43,0)","v":"00:00:00"},null,null,null,null,null,{"$f":"IFERROR(CK42-CK41-CK43,0)","v":"00:00:00"},null,null,null,null,null,{"$f":"IFERROR(CQ42-CQ41-CQ43,0)","v":"00:00:00"},null,null,null,null,null,{"$f":"IFERROR(CW42-CW41-CW43,0)","v":"00:00:00"},null,null,null,null,null,{"$f":"IFERROR(DC42-DC41-DC43,0)","v":0},null,null,null,null,null,{"$f":"IFERROR(DI42-DI41-DI43,0)","v":"00:00:00"},null,null,null,null,null,{"$f":"IFERROR(DO42-DO41-DO43,0)","v":"00:00:00"},null,null,null,null,null,{"$f":"IFERROR(DU42-DU41-DU43,0)","v":"00:00:00"},null,null,null,null,null,{"$f":"IFERROR(EA42-EA41-EA43,0)","v":0},null,null,null,null,null,{"$f":"IFERROR(EG42-EG41-EG43,0)","v":"00:00:00"},null,null,null,null,null,{"$f":"IFERROR(EM42-EM41-EM43,0)","v":"00:00:00"},null,null,null,null,null,{"$f":"IFERROR(ES42-ES41-ES43,0)","v":"00:00:00"},null,null,null,null,null,{"$f":"IFERROR(EY42-EY41-EY43,0)","v":"00:00:00"},null,null,null,null,null,{"$f":"IFERROR(FE42-FE41-FE43,0)","v":"00:00:00"},null,null,null,null,null,{"$f":"IFERROR(FK42-FK41-FK43,0)","v":0},null,null,null,null,null,{"$f":"IFERROR(FQ42-FQ41-FQ43,0)","v":"00:00:00"},null,null,null,null,null,{"$f":"IFERROR(FW42-FW41-FW43,0)","v":"00:00:00"},null,null,null,null,null,{"$f":"IFERROR(GC42-GC41-GC43,0)","v":"00:00:00"},null,null,null,null,null,{"$f":"IFERROR(GI42-GI41-GI43,0)","v":"00:00:00"},null,null,null,null,null,{"$f":"IFERROR(GO42-GO41-GO43,0)","v":"00:00:00"},null,null,null,null,null,{"$f":"IFERROR(GU42-GU41-GU43,0)","v":"00:00:00"},null,null,null,null,null,{"$f":"IFERROR(HA42-HA41-HA43,0)","v":"00:00:00"},null,null,null,null,null,null,null,null,null,null,null,null,null,null,null,null,null,null,null,null,null,null,null,{"$f":"SUM(AC44:HE44)","v":0}]
[null,null,null,null,null,null,null,null,null,null,null,null,null,null,null,null,null,null,null,null,null,null,null,null,"пр."]
[null,null,null,null,null,null,null,null,null,null,null,null,null,null,null,null,null,null,null,null,null,null,null,null,"ОТ",null,null,null,null,null,null,null,null,null,null,null,null,null,null,null,null,null,null,null,null,null,null,null,null,null,null,null,null,null,null,null,null,null,null,null,null,null,null,null,null,null,null,null,null,null,null,null,null,null,null,null,null,null,null,null,null,null,null,null,null,null,null,null,null,null,null,null,null,null,null,null,null,null,null,null,null,null,null,null,null,null,null,null,null,null,null,null,null,null,null,null,null,null,null,null,null,null,null,null,null,null,null,null,null,null,null,null,null,null,null,null,null,null,null,null,null,null,null,null,null,null,null,null,null,null,null,null,null,null,null,null,null,null,null,null,null,null,null,null,null,null,null,null,null,null,null,null,null,null,null,null,null,null,null,null,null,null,null,null,null,null,null,null,null,null,null,null,null,null,null,null,null,null,null,null,null,null,null,null,null,null,null,null,null,null,null,null,null,null,null,null,null,null,null,null,null,null,null,null,null,null,null,null,null,null,null,null,null,{"$f":"VLOOKUP($HY$17,'[1]производственный календарь '!$B$2:$D$13,3,0)","v":19},{"$f":"VLOOKUP($HY$17,'[1]производственный календарь '!$B$2:$D$13,2,0)","v":152}]
[null,4,null,null,null,"Гордиенко Т.И.",null,null,null,null,null,null,null,null,null,null,null,null,null,null,null,null,null,null,1,null,null,null,0.33333333333333331,null,null,null,null,null,"В",null,null,null,null,null,"В",null,null,null,null,null,0.33333333333333331,null,null,null,null,null,"В",null,null,null,null,null,"В",null,null,null,null,null,"В",null,null,null,null,null,0.33333333333333331,null,null,null,null,null,"В",null,null,null,null,null,"В",null,null,null,null,null,0.33333333333333331,null,null,null,null,null,"В",null,null,null,null,null,"В",null,null,null,null,null,"В",null,null,null,null,null,0.33333333333333331,null,null,null,null,null,"В",null,null,null,null,null,"В",null,null,null,null,null,0.33333333333333331,null,null,null,null,null,"В",null,null,null,null,null,"В",null,null,null,null,null,"В",null,null,null,null,null,0.33333333333333331,null,null,null,null,null,"В",null,null,null,null,null,"В",null,null,null,null,null,0.33333333333333331,null,null,null,null,null,"В",null,null,null,null,null,"В",null,null,null,null,null,"В",null,null,null,null,null,0.33333333333333331,null,null,null,null,null,"В",null,null,null,null,null,0.33333333333333331,null,null,null,null,null,{"$f":"COUNT(AC47:HF47)","v":10},null,null,null,null,null,null,null,null,null,null,null,null,null,null,null,null,null,{"$f":"SUM(IFERROR(AC48:HF48-AC47:HF47-AC49:HF49,0))","v":3.2916666666666674}]
[null,null,null,null,null,null,null,null,null,null,null,null,null,null,null,null,null,null,null,null,null,null,null,null,null,null,null,null,0.70833333333333337,null,null,null,null,null,"В",null,null,null,null,null,"В",null,null,null,null,null,0.70833333333333337,null,null,null,null,null,"В",null,null,null,null,null,"В",null,null,null,null,null,"В",null,null,null,null,null,0.70833333333333337,null,null,null,null,null,"В",null,null,null,null,null,"В",null,null,null,null,null,0.70833333333333337,null,null,null,null,null,"В",null,null,null,null,null,"В",null,null,null,null,null,"В",null,null,null,null,null,0.70833333333333337,null,null,null,null,null,"В",null,null,null,null,null,"В",null,null,null,null,null,0.70833333333333337,null,null,null,null,null,"В",null,null,null,null,null,"В",null,null,null,null,null,"В",null,null,null,null,null,0.70833333333333337,null,null,null,null,null,"В",null,null,null,null,null,"В",null,null,null,null,null,0.70833333333333337,null,null,null,null,null,"В",null,null,null,null,null,"В",null,null,null,null,null,"В",null,null,null,null,null,0.70833333333333337,null,null,null,null,null,"В",null,null,null,null,null,0.66666666666666663]
[null,null,null,null,null,null,null,null,null,null,null,null,null,null,null,null,null,null,null,null,null,null,null,null,"обед",null,null,null,"01:00:00",null,null,null,null,null,"В",null,null,null,null,null,"В",null,null,null,null,null,"01:00:00",null,null,null,null,null,"В",null,null,null,null,null,"В",null,null,null,null,null,"В",null,null,null,null,null,"01:00:00",null,null,null,null,null,"В",null,null,null,null,null,"В",null,null,null,null,null,"01:00:00",null,null,null,null,null,"В",null,null,null,null,null,"В",null,null,null,null,null,"В",null,null,null,null,null,"01:00:00",null,null,null,null,null,"В",null,null,null,null,null,"В",null,null,null,null,null,"01:00:00",null,null,null,null,null,"В",null,null,null,null,null,"В",null,null,null,null,null,"В",null,null,null,null,null,"01:00:00",null,null,null,null,null,"В",null,null,null,null,null,"В",null,null,null,null,null,"01:00:00",null,null,null,null,null,"В",null,null,null,null,null,"В",null,null,null,null,null,"В",null,null,null,null,null,"01:00:00",null,null,null,null,null,"В",null,null,null,null,null,"01:00:00",null,null,null,null,null,null,null,null,null,null,null,null,null,null,null,null,null,null,null,null,null,null,null,null,null,null,null,"модуль 5",3]
[null,null,null,null,null,null,null,null,null,null,null,null,null,null,null,null,null,null,null,null,null,null,null,null,"р.д.",null,null,null,{"$f":"IFERROR(AC48-AC47-AC49,0)","v":"08:00:00"},null,null,null,null,null,{"$f":"IFERROR(AI48-AI47-AI49,0)","v":"00:00:00"},null,null,null,null,null,{"$f":"IFERROR(AO48-AO47-AO49,0)","v":"00:00:00"},null,null,null,null,null,{"$f":"IFERROR(AU48-AU47-AU49,0)","v":"08:00:00"},null,null,null,null,null,{"$f":"IFERROR(BA48-BA47-BA49,0)","v":"00:00:00"},null,null,null,null,null,{"$f":"IFERROR(BG48-BG47-BG49,0)","v":"00:00:00"},null,null,null,null,null,{"$f":"IFERROR(BM48-BM47-BM49,0)","v":"00:00:00"},null,null,null,null,null,{"$f":"IFERROR(BS48-BS47-BS49,0)","v":"08:00:00"},null,null,null,null,null,{"$f":"IFERROR(BY48-BY47-BY49,0)","v":"00:00:00"},null,null,null,null,null,{"$f":"IFERROR(CE48-CE47-CE49,0)","v":"00:00:00"},null,null,null,null,null,{"$f":"IFERROR(CK48-CK47-CK49,0)","v":"08:00:00"},null,null,null,null,null,{"$f":"IFERROR(CQ48-CQ47-CQ49,0)","v":"00:00:00"},null,null,null,null,null,{"$f":"IFERROR(CW48-CW47-CW49,0)","v":"00:00:00"},null,null,null,null,null,{"$f":"IFERROR(DC48-DC47-DC49,0)","v":"00:00:00"},null,null,null,null,null,{"$f":"IFERROR(DI48-DI47-DI49,0)","v":"08:00:00"},null,null,null,null,null,{"$f":"IFERROR(DO48-DO47-DO49,0)","v":"00:00:00"},null,null,null,null,null,{"$f":"IFERROR(DU48-DU47-DU49,0)","v":"00:00:00"},null,null,null,null,null,{"$f":"IFERROR(EA48-EA47-EA49,0)","v":"08:00:00"},null,null,null,null,null,{"$f":"IFERROR(EG48-EG47-EG49,0)","v":"00:00:00"},null,null,null,null,null,{"$f":"IFERROR(EM48-EM47-EM49,0)","v":"00:00:00"},null,null,null,null,null,{"$f":"IFERROR(ES48-ES47-ES49,0)","v":"00:00:00"},null,null,null,null,null,{"$f":"IFERROR(EY48-EY47-EY49,0)","v":"08:00:00"},null,null,null,null,null,{"$f":"IFERROR(FE48-FE47-FE49,0)","v":"00:00:00"},null,null,null,null,null,{"$f":"IFERROR(FK48-FK47-FK49,0)","v":"00:00:00"},null,null,null,null,null,{"$f":"IFERROR(FQ48-FQ47-FQ49,0)","v":"08:00:00"},null,null,null,null,null,{"$f":"IFERROR(FW48-FW47-FW49,0)","v":"00:00:00"},null,null,null,null,null,{"$f":"IFERROR(GC48-GC47-GC49,0)","v":"00:00:00"},null,null,null,null,null,{"$f":"IFERROR(GI48-GI47-GI49,0)","v":"00:00:00"},null,null,null,null,null,{"$f":"IFERROR(GO48-GO47-GO49,0)","v":"08:00:00"},null,null,null,null,null,{"$f":"IFERROR(GU48-GU47-GU49,0)","v":"00:00:00"},null,null,null,null,null,{"$f":"IFERROR(HA48-HA47-HA49,0)","v":"07:00:00"},null,null,null,null,null,null,null,null,null,null,null,null,null,null,null,null,null,null,null,null,null,null,null,{"$f":"SUM(AC50:HE50)","v":3.2916666666666674}]
[null,null,null,null,null,null,null,null,null,null,null,null,null,null,null,null,null,null,null,null,null,null,null,null,"ОТ"]
[null,null,null,null,null,null,null,null,null,null,null,null,null,null,null,null,null,null,null,null,null,null,null,null,"пр.",null,null,null,"ОТ",null,null,null,null,null,"ОТ",null,null,null,null,null,"ОТ",null,null,null,null,null,"ОТ",null,null,null,null,null,"ОТ",null,null,null,null,null,"ОТ",null,null,null,null,null,"ОТ",null,null,null,null,null,"ОТ",null,null,null,null,null,"ОТ",null,null,null,null,null,"ОТ",null,null,null,null,null,"ОТ",null,null,null,null,null,"ОТ",null,null,null,null,null,"ОТ",null,null,null,null,null,null,null,null,null,null,null,null,null,null,null,null,null,null,null,null,null,null,null,null,null,null,null,null,null,null,null,null,null,null,null,null,null,null,null,null,null,null,null,null,null,null,null,null,null,null,null,null,null,null,null,null,null,null,null,null,null,null,null,null,null,null,null,null,null,null,null,null,null,null,null,null,null,null,null,null,null,null,null,null,null,null,null,null,null,null,null,null,null,null,null,null,null,null,null,null,null,null,null,null,null,null,null,null,null,null,null,null,null,null,null,null,null,null,null,null,null,null,null,null,null,null,null,null,null,null,null,null,{"$f":"VLOOKUP($HY$17,'[1]производственный календарь '!$B$2:$D$13,3,0)","v":19},{"$f":"VLOOKUP($HY$17,'[1]производственный календарь '!$B$2:$D$13,2,0)","v":152}]
[null,5,null,null,null,"Петрова Т.В.",null,null,null,null,null,null,null,null,null,null,null,null,null,null,null,null,null,null,1,null,null,null,0.33333333333333331,null,null,null,null,null,"В",null,null,null,null,null,"В",null,null,null,null,null,0.33333333333333331,null,null,null,null,null,"В",null,null,null,null,null,"В",null,null,null,null,null,"В",null,null,null,null,null,0.33333333333333331,null,null,null,null,null,"В",null,null,null,null,null,"В",null,null,null,null,null,0.33333333333333331,null,null,null,null,null,"В",null,null,null,null,null,"В",null,null,null,null,null,"В",null,null,null,null,null,0.33333333333333331,null,null,null,null,null,"В",null,null,null,null,null,"В",null,null,null,null,null,0.33333333333333331,null,null,null,null,null,"В",null,null,null,null,null,"В",null,null,null,null,null,"В",null,null,null,null,null,0.33333333333333331,null,null,null,null,null,"В",null,null,null,null,null,"В",null,null,null,null,null,0.33333333333333331,null,null,null,null,null,"В",null,null,null,null,null,"В",null,null,null,null,null,"В",null,null,null,null,null,0.33333333333333331,null,null,null,null,null,"В",null,null,null,null,null,0.33333333333333331,null,null,null,null,null,{"$f":"COUNT(AC53:HF53)","v":10},null,null,null,null,null,null,null,null,null,null,null,null,null,null,null,null,null,{"$f":"SUM(IFERROR(AC54:HF54-AC53:HF53-AC55:HF55,0))","v":1.6458333333333335},null,{"$f":"IA40/2","v":76}]
[null,null,null,null,null,null,null,null,null,null,null,null,null,null,null,null,null,null,null,null,null,null,null,null,null,null,null,null,0.54166666666666663,null,null,null,null,null,"В",null,null,null,null,null,"В",null,null,null,null,null,0.54166666666666663,null,null,null,null,null,"В",null,null,null,null,null,"В",null,null,null,null,null,"В",null,null,null,null,null,0.54166666666666663,null,null,null,null,null,"В",null,null,null,null,null,"В",null,null,null,null,null,0.54166666666666663,null,null,null,null,null,"В",null,null,null,null,null,"В",null,null,null,null,null,"В",null,null,null,null,null,0.54166666666666663,null,null,null,null,null,"В",null,null,null,null,null,"В",null,null,null,null,null,0.54166666666666663,null,null,null,null,null,"В",null,null,null,null,null,"В",null,null,null,null,null,"В",null,null,null,null,null,0.54166666666666663,null,null,null,null,null,"В",null,null,null,null,null,"В",null,null,null,null,null,0.54166666666666663,null,null,null,null,null,"В",null,null,null,null,null,"В",null,null,null,null,null,"В",null,null,null,null,null,0.54166666666666663,null,null,null,null,null,"В",null,null,null,null,null,0.52083333333333337]
[null,null,null,null,null,null,null,null,null,null,null,null,null,null,null,null,null,null,null,null,null,null,null,null,"обед",null,null,null,"01:00:00",null,null,null,null,null,"В",null,null,null,null,null,"В",null,null,null,null,null,"01:00:00",null,null,null,null,null,"В",null,null,null,null,null,"В",null,null,null,null,null,"В",null,null,null,null,null,"01:00:00",null,null,null,null,null,"В",null,null,null,null,null,"В",null,null,null,null,null,"01:00:00",null,null,null,null,null,"В",null,null,null,null,null,"В",null,null,null,null,null,"В",null,null,null,null,null,"01:00:00",null,null,null,null,null,"В",null,null,null,null,null,"В",null,null,null,null,null,"01:00:00",null,null,null,null,null,"В",null,null,null,null,null,"В",null,null,null,null,null,"В",null,null,null,null,null,"01:00:00",null,null,null,null,null,"В",null,null,null,null,null,"В",null,null,null,null,null,"01:00:00",null,null,null,null,null,"В",null,null,null,null,null,"В",null,null,null,null,null,"В",null,null,null,null,null,"01:00:00",null,null,null,null,null,"В",null,null,null,null,null,"01:00:00"]
[null,null,null,null,null,null,null,null,null,null,null,null,null,null,null,null,null,null,null,null,null,null,null,null,"р.д.",null,null,null,{"$f":"IFERROR(AC54-AC53-AC55,0)","v":"04:00:00"},null,null,null,null,null,{"$f":"IFERROR(AI54-AI53-AI55,0)","v":"00:00:00"},null,null,null,null,null,{"$f":"IFERROR(AO54-AO53-AO55,0)","v":"00:00:00"},null,null,null,null,null,{"$f":"IFERROR(AU54-AU53-AU55,0)","v":"04:00:00"},null,null,null,null,null,{"$f":"IFERROR(BA54-BA53-BA55,0)","v":"00:00:00"},null,null,null,null,null,{"$f":"IFERROR(BG54-BG53-BG55,0)","v":"00:00:00"},null,null,null,null,null,{"$f":"IFERROR(BM54-BM53-BM55,0)","v":"00:00:00"},null,null,null,null,null,{"$f":"IFERROR(BS54-BS53-BS55,0)","v":"04:00:00"},null,null,null,null,null,{"$f":"IFERROR(BY54-BY53-BY55,0)","v":"00:00:00"},null,null,null,null,null,{"$f":"IFERROR(CE54-CE53-CE55,0)","v":"00:00:00"},null,null,null,null,null,{"$f":"IFERROR(CK54-CK53-CK55,0)","v":"04:00:00"},null,null,null,null,null,{"$f":"IFERROR(CQ54-CQ53-CQ55,0)","v":"00:00:00"},null,null,null,null,null,{"$f":"IFERROR(CW54-CW53-CW55,0)","v":"00:00:00"},null,null,null,null,null,{"$f":"IFERROR(DC54-DC53-DC55,0)","v":0},null,null,null,null,null,{"$f":"IFERROR(DI54-DI53-DI55,0)","v":"04:00:00"},null,null,null,null,null,{"$f":"IFERROR(DO54-DO53-DO55,0)","v":"00:00:00"},null,null,null,null,null,{"$f":"IFERROR(DU54-DU53-DU55,0)","v":"00:00:00"},null,null,null,null,null,{"$f":"IFERROR(EA54-EA53-EA55,0)","v":"04:00:00"},null,null,null,null,null,{"$f":"IFERROR(EG54-EG53-EG55,0)","v":"00:00:00"},null,null,null,null,null,{"$f":"IFERROR(EM54-EM53-EM55,0)","v":"00:00:00"},null,null,null,null,null,{"$f":"IFERROR(ES54-ES53-ES55,0)","v":"00:00:00"},null,null,null,null,null,{"$f":"IFERROR(EY54-EY53-EY55,0)","v":"04:00:00"},null,null,null,null,null,{"$f":"IFERROR(FE54-FE53-FE55,0)","v":"00:00:00"},null,null,null,null,null,{"$f":"IFERROR(FK54-FK53-FK55,0)","v":0},null,null,null,null,null,{"$f":"IFERROR(FQ54-FQ53-FQ55,0)","v":"04:00:00"},null,null,null,null,null,{"$f":"IFERROR(FW54-FW53-FW55,0)","v":"00:00:00"},null,null,null,null,null,{"$f":"IFERROR(GC54-GC53-GC55,0)","v":"00:00:00"},null,null,null,null,null,{"$f":"IFERROR(GI54-GI53-GI55,0)","v":"00:00:00"},null,null,null,null,null,{"$f":"IFERROR(GO54-GO53-GO55,0)","v":"04:00:00"},null,null,null,null,null,{"$f":"IFERROR(GU54-GU53-GU55,0)","v":"00:00:00"},null,null,null,null,null,{"$f":"IFERROR(HA54-HA53-HA55,0)","v":"03:30:00"},null,null,null,null,null,null,null,null,null,null,null,null,null,null,null,null,null,null,null,null,null,null,null,{"$f":"SUM(AC56:HE56)","v":1.6458333333333335}]
[null,null,null,null,null,null,null,null,null,null,null,null,null,null,null,null,null,null,null,null,null,null,null,null,"пр.",null,null,null,null,null,null,null,null,null,null,null,null,null,null,null,null,null,null,null,null,null,null,null,null,null,null,null,null,null,null,null,null,null,null,null,null,null,null,null,null,null,null,null,null,null,null,null,null,null,null,null,null,null,null,null,null,null,null,null,null,null,null,null,null,null,null,null,null,null,null,null,null,null,null,null,null,null,null,null,null,null,null,null,null,null,null,null,null,null,null,null,null,null,null,null,null,null,null,null,null,null,null,null,null,null,null,null,null,null,null,null,null,null,null,null,null,null,null,null,null,null,null,null,null,null,null,null,null,null,null,null,null,null,null,null,null,null,null,null,null,null,null,null,null,null,null,null,null,null,null,null,null,null,null,null,null,null,null,null,null,null,null,null,null,null,null,null,null,null,null,null,null,null,null,null,null,null,null,null,null,null,null,null,null,null,null,null,null,null,null,null,null,null,null,null,null,null,null,null,null,null,null,null,null,null,null,null,{"$f":"SUM(AC57:HF57)","v":"00:00:00"}]
[null,null,null,null,null,null,null,null,null,null,null,null,null,null,null,null,null,null,null,null,null,null,null,null,"ОТ",null,null,null,null,null,null,null,null,null,null,null,null,null,null,null,null,null,null,null,null,null,null,null,null,null,null,null,null,null,null,null,null,null,null,null,null,null,null,null,null,null,null,null,null,null,null,null,null,null,null,null,null,null,null,null,null,null,null,null,null,null,null,null,null,null,null,null,null,null,null,null,null,null,null,null,null,null,null,null,null,null,null,null,null,null,null,null,null,null,null,null,null,null,null,null,null,null,null,null,null,null,null,null,null,null,null,null,null,null,null,null,null,null,null,null,null,null,null,null,null,null,null,null,null,null,null,null,null,null,null,null,null,null,null,null,null,null,null,null,null,null,null,null,null,null,null,null,null,null,null,null,null,null,null,null,null,null,null,null,null,null,null,null,null,null,null,null,null,null,null,null,null,null,null,null,null,null,null,null,null,null,null,null,null,null,null,null,null,null,null,null,null,null,null,null,null,null,null,null,null,null,null,null,null,null,null,null,null,{"$f":"VLOOKUP($HY$17,'[1]производственный календарь '!$B$2:$D$13,3,0)","v":19},{"$f":"VLOOKUP($HY$17,'[1]производственный календарь '!$B$2:$D$13,2,0)","v":152}]
[]
[]
[null,null,null,null,null,null,null,null,null,null,null,null,null,null,null,null,null,"С графиком ознакомлен(а):"]
[]
[null,null,null,null,null,null,null,null,null,null,null,null,null,null,null,null,null,null,null,null,null,null,null,null,null,null,null,null,null,null,null,null,null,null,null,null,null,null,null,null,null,null,null,null,null,null,null,null,null,null,null,null,null,null,null,null,null,null,null,null,null,null,null,null,null,null,null,null,null,null,null,null,null,null,"\"___\"______________2020"]
[null,null,null,null,null,null,null,null,null,null,null,null,null,null,null,null,null,null,null,null,null,null,null,null,null,null,null,null,null,null,null,null,null,null,null,null,null,null,null,null,null,null,null,null,null,null,null,null,null,null,null,null,null,null,null,null,null,null,null,null,null,null,null,null,null,null,null,null,null,null,null,null,null,null,"\"___\"______________2020"]
[null,null,null,null,null,null,null,null,null,null,null,null,null,null,null,null,null,null,null,null,null,null,null,null,null,null,null,null,null,null,null,null,null,null,null,null,null,null,null,null,null,null,null,null,null,null,null,null,null,null,null,null,null,null,null,null,null,null,null,null,null,null,null,null,null,null,null,null,null,null,null,null,null,null,"\"___\"______________2020"]
[null,null,null,null,null,null,null,null,null,null,null,null,null,null,null,null,null,null,null,null,null,null,null,null,null,null,null,null,null,null,null,null,null,null,null,null,null,null,null,null,null,null,null,null,null,null,null,null,null,null,null,null,null,null,null,null,null,null,null,null,null,null,null,null,null,null,null,null,null,null,null,null,null,null,"\"___\"______________2020",null,null,null,null,null,null,null,null,null,null,null,null,null,null,null,null,null,null,null,null,null,null,null,null,null,null,null,null,null,null,null,null,null,null,null,null,null,null,null,null,null,null,null,null,null,null,null,null,null,null,null,null,null,null,null,null,null,null,null,null,null,null,null,null,"в этой ячейке должно стоять 7:00"]
[null,null,null,null,null,null,null,null,null,null,null,null,null,null,null,null,null,null,null,null,null,null,null,null,null,null,null,null,null,null,null,null,null,null,null,null,null,null,null,null,null,null,null,null,null,null,null,null,null,null,null,null,null,null,null,null,null,null,null,null,null,null,null,null,null,null,null,null,null,null,null,null,null,null,"\"___\"______________2020"]
[null,null,null,null,null,null,null,null,null,null,null,null,null,null,null,null,null,null,null,null,null,null,null,null,null,null,null,null,null,null,null,null,null,null,null,null,null,null,null,null,null,null,null,null,null,null,null,null,null,null,null,null,null,null,null,null,null,null,null,null,null,null,null,null,null,null,null,null,null,null,null,null,null,null,"\"___\"______________2020"]
[null,null,null,null,null,null,null,null,null,null,null,null,null,null,null,null,null,null,null,null,null,null,null,null,null,null,null,null,null,null,null,null,null,null,null,null,null,null,null,null,null,null,null,null,null,null,null,null,null,null,null,null,null,null,null,null,null,null,null,null,null,null,null,null,null,null,null,null,null,null,null,null,null,null,"\"___\"______________2020"]
[null,null,null,null,null,null,null,null,null,null,null,null,null,null,null,null,null,null,null,null,null,null,null,null,null,null,null,null,null,null,null,null,null,null,null,null,null,null,null,null,null,null,null,null,null,null,null,null,null,null,null,null,null,null,null,null,null,null,null,null,null,null,null,null,null,null,null,null,null,null,null,null,null,null,"\"___\"______________2020"]
[null,null,null,null,null,null,null,null,null,null,null,null,null,null,null,null,null,null,null,null,null,null,null,null,null,null,null,null,null,null,null,null,null,null,null,null,null,null,null,null,null,null,null,null,null,null,null,null,null,null,null,null,null,null,null,null,null,null,null,null,null,null,null,null,null,null,null,null,null,null,null,null,null,null,"\"___\"______________2020"]
[null,null,null,null,null,null,null,null,null,null,null,null,null,null,null,null,null,null,null,null,null,null,null,null,null,null,null,null,null,null,null,null,null,null,null,null,null,null,null,null,null,null,null,null,null,null,null,null,null,null,null,null,null,null,null,null,null,null,null,null,null,null,null,null,null,null,null,null,null,null,null,null,null,null,"\"___\"______________2020"]
[null,null,null,null,null,null,null,null,null,null,null,null,null,null,null,null,null,null,null,null,null,null,null,null,null,null,null,null,null,null,null,null,null,null,null,null,null,null,null,null,null,null,null,null,null,null,null,null,null,null,null,null,null,null,null,null,null,null,null,null,null,null,null,null,null,null,null,null,null,null,null,null,null,null,"\"___\"______________2020",null,null,null,null,null,null,null,null,null,null,null,null,null,null,null,null,null,null,null,null,null,null,null,null,null,null,null,null,null,null,null,null,null,null,null,null,null,"Помогите сделать так, чтобы предпраздничный день всегда отображалось на 1 час меньше при смене месяца "]
[null,null,null,null,null,null,null,null,null,null,null,null,null,null,null,null,null,null,null,null,null,null,null,null,null,null,null,null,null,null,null,null,null,null,null,null,null,null,null,null,null,null,null,null,null,null,null,null,null,null,null,null,null,null,null,null,null,null,null,null,null,null,null,null,null,null,null,null,null,null,null,null,null,null,"\"___\"______________2020"]